Workbook

Sheet Budget Template
A1: Award No. | B1: 502###
A2: PSC Rate | B2: =VLOOKUP(B308,'BL & PSC Rates'!A$2:C$7,2,FALSE) -> 0.13
A3: Project Number | B3: 107###
A4: XB Symbol | B4: GLO/20/29/BEL
A5: Budget Version | B5: V.01.00
H6: Working (Draft) Budget | O6: Current/Baselined Budget | V6: Comparison (Working Budget - Current/Baselined Budget) | AC6: Budget to be entered in OGA
A7: Task Number | H7: 2020 | I7: =H7+1 -> 2021 | J7: =I7+1 -> 2022 | K7: 2023 | L7: 2024 | M7: Total | O7: =H7 -> 2020 | P7: =I7 -> 2021 | Q7: =J7 -> 2022 | R7: =K7 -> 2023 | S7: 2024 | T7: Total | V7: =O7 -> 2020 | W7: =P7 -> 2021 | X7: =Q7 -> 2022 | Y7: =R7 -> 2023 | Z7: 2024 | AA7: Total | AC7: =V7 -> 2020 | AD7: =W7 -> 2021 | AE7: =X7 -> 2022 | AF7: =Y7 -> 2023 | AG7: 2024 | AH7: Total
A8: Total Project Level | H8: =SUM(H9:H17) -> 430854.5 | I8: =SUM(I9:I17) -> 1492892 | J8: =SUM(J9:J17) -> 326253.5 | K8: =SUM(K9:K17) -> 0 | L8: =SUM(L9:L17) -> 0 | M8: =SUM(H8:L8) -> 2250000 | O8: =SUM(O9:O17) -> 0 | P8: =SUM(P9:P17) -> 0 | Q8: =SUM(Q9:Q17) -> 0 | R8: =SUM(R9:R17) -> 0 | S8: =SUM(S9:S17) -> 0 | T8: =SUM(O8:S8) -> 0 | V8: =SUM(V9:V17) -> 430854.5 | W8: =SUM(W9:W17) -> 1492892 | X8: =SUM(X9:X17) -> 326253.5 | Y8: =SUM(Y9:Y17) -> 0 | Z8: =SUM(Z9:Z17) -> 0 | AA8: =SUM(V8:Z8) -> 2250000 | AC8: =SUM(AC9:AC17) -> 430854.5 | AD8: =SUM(AD9:AD17) -> 1492892 | AE8: =SUM(AE9:AE17) -> 326253.5 | AF8: =SUM(AF9:AF17) -> 0 | AG8: =SUM(AG9:AG17) -> 0 | AH8: =SUM(AC8:AG8) -> 2250000
A9: =A22 -> GR 01: Résultat 1 au niveau global et régional: - Les partenariats entre l’OIT et les acteurs régionaux (CIPRES, UEMOA) sont renforcés et les institutions régionales ont les capacités de soutenir leurs membres dans le renforcement de systèmes de protection sociale et de couverture santé qui soient durables, résistants aux chocs sécuritaires, sanitaires et climatiques, et inclusifs notamment des travailleurs de l'économie informelle. | H9: =H22 -> 7500 | I9: =I22 -> 45000 | J9: 2500 | K9: =K22 -> 0 | L9: 0 | M9: 55000 | O9: =O22 -> 0 | P9: =P22 -> 0 | Q9: 0 | R9: =R22 -> 0 | S9: 0 | T9: 0 | V9: =V22 -> 7500 | W9: =W22 -> 45000 | X9: 2500 | Y9: =Y22 -> 0 | Z9: 0 | AA9: =SUM(V9:Z9) -> 55000 | AC9: =AC22 -> 7500 | AD9: =AD22 -> 45000 | AE9: 2500 | AF9: =AF22 -> 0 | AG9: 0 | AH9: =SUM(AC9:AG9) -> 55000
A10: =A48 -> BF 01: Résultat 1 Burkina Faso. - Les parties prenantes disposent des informations nécessaires et de capacités renforcées pour déterminer et valider l’architecture et les paramètres du régime d’assurance maladie universelle. | H10: =H48 -> 54700 | I10: =I48 -> 60300 | J10: 5000 | K10: =K48 -> 0 | L10: 0 | M10: 120000 | O10: =O48 -> 0 | P10: =P48 -> 0 | Q10: 0 | R10: =R48 -> 0 | S10: 0 | T10: 0 | V10: =V48 -> 54700 | W10: =W48 -> 60300 | X10: 5000 | Y10: =Y48 -> 0 | Z10: 0 | AA10: =SUM(V10:Z10) -> 120000 | AC10: =AC48 -> 54700 | AD10: =AD48 -> 60300 | AE10: 5000 | AF10: =AF48 -> 0 | AG10: 0 | AH10: =SUM(AC10:AG10) -> 120000
A11: =A82 -> SN 01: Résultat 1 Sénégal. - Les parties prenantes disposent des informations nécessaires et de capacités renforcées pour consolider les arrangements juridiques et institutionnels de la branche santé du régime simplifié, notamment son articulation avec l'assurance maladie universelle, et pour faciliter un passage à l’échelle. | H11: =H82 -> 65500 | I11: =I82 -> 55000 | J11: 12000 | K11: =K82 -> 0 | L11: 0 | M11: 132500 | O11: =O82 -> 0 | P11: =P82 -> 0 | Q11: 0 | R11: =R82 -> 0 | S11: 0 | T11: 0 | V11: =V82 -> 65500 | W11: =W82 -> 55000 | X11: 12000 | Y11: =Y82 -> 0 | Z11: 0 | AA11: =SUM(V11:Z11) -> 132500 | AC11: =AC82 -> 65500 | AD11: =AD82 -> 55000 | AE11: 12000 | AF11: =AF82 -> 0 | AG11: 0 | AH11: =SUM(AC11:AG11) -> 132500
A12: =A119 -> GR 02: Résultat 2 Niveau global et régional. - L’OIT facilite le déploiement des systèmes de protection sociale par le développement d’outils de formation et de connaissance, par la mise à disposition d’une assistance technique cadrée sur les besoins et par un partage de connaissances et d’expériences au niveau régional et global propice à déclencher des effets multiplicateurs dans d’autres pays africains. | H12: =H119 -> 33000 | I12: =I119 -> 145000 | J12: 10000 | K12: =K119 -> 0 | L12: 0 | M12: 188000 | O12: =O119 -> 0 | P12: =P119 -> 0 | Q12: 0 | R12: =R119 -> 0 | S12: 0 | T12: 0 | V12: =V119 -> 33000 | W12: =W119 -> 145000 | X12: 10000 | Y12: =Y119 -> 0 | Z12: 0 | AA12: 188000 | AC12: =AC119 -> 33000 | AD12: =AD119 -> 145000 | AE12: 10000 | AF12: =AF119 -> 0 | AG12: 0 | AH12: 188000
A13: =A160 -> BF 02 Résultat 2 au Burkina Faso. Les capacités des acteurs techniques et institutionnels sont renforcées et ces acteurs disposent des compétences et des moyens pour démarrer l'opérationnalisation de la CNAMU (système d'information, cadre conventionnel avec les mutuelles sociales et autres organisations de proximité, entre autres). | H13: =H160 -> 16500 | I13: =I160 -> 166500 | J13: 4500 | K13: =K160 -> 0 | L13: 0 | M13: 187500 | O13: =O160 -> 0 | P13: =P160 -> 0 | Q13: 0 | R13: =R160 -> 0 | S13: 0 | T13: 0 | V13: =V160 -> 16500 | W13: =W160 -> 166500 | X13: 4500 | Y13: =Y160 -> 0 | Z13: 0 | AA13: 187500 | AC13: =AC160 -> 16500 | AD13: =AD160 -> 166500 | AE13: 4500 | AF13: =AF160 -> 0 | AG13: 0 | AH13: 187500
A14: =A196 -> SN 02 Résultat 2 au Sénégal. Les capacités des acteurs techniques et de gouvernance sont renforcées et les acteurs disposent des compétences et des moyens pour entamer le déploiement de la branche santé du régime simplifié avec notamment la mise en place du cadre institutionnel pour travailler avec les organisations professionnelles (communication et marketing social, délégations de certaines fonctions de gestion, entre autres). | B14: =B196 -> 0 | C14: 0 | D14: 0 | E14: 0 | H14: 46000 | I14: 124000 | J14: 30000 | K14: 0 | L14: 0 | M14: 200000 | N14: 0 | O14: 0 | P14: 0 | Q14: 0 | R14: 0 | S14: 0 | T14: 0 | U14: 0 | V14: 46000 | W14: 124000 | X14: 30000 | Y14: 0 | Z14: 0 | AA14: 200000 | AB14: 0 | AC14: 46000 | AD14: 124000 | AE14: 30000 | AF14: 0 | AG14: 0 | AH14: 200000
A15: =A238 -> 03: Project Management & Oversight | H15: =H238 -> 158086.5 | I15: =I238 -> 674616 | J15: 213756.5 | K15: =K238 -> 0 | L15: 0 | M15: 1046459 | O15: =O238 -> 0 | P15: =P238 -> 0 | Q15: 0 | R15: =R238 -> 0 | S15: 0 | T15: 0 | V15: =V238 -> 158086.5 | W15: =W238 -> 674616 | X15: 213756.5 | Y15: =Y238 -> 0 | Z15: 0 | AA15: 1046459 | AC15: =AC238 -> 158086.5 | AD15: =AD238 -> 674616 | AE15: 213756.5 | AF15: =AF238 -> 0 | AG15: 0 | AH15: 1046459
A16: =A305 -> 99: Programme Support Costs and Provision for Cost Increase | H16: =H305 -> 49568 | I16: =I305 -> 222476 | J16: 48497 | K16: =K305 -> 0 | L16: 0 | M16: 320541 | O16: =O305 -> 0 | P16: =P305 -> 0 | Q16: 0 | R16: =R305 -> 0 | S16: 0 | T16: 0 | V16: =V305 -> 49568 | W16: =W305 -> 222476 | X16: 48497 | Y16: =Y305 -> 0 | Z16: 0 | AA16: 320541 | AC16: =AC305 -> 49568 | AD16: =AD305 -> 222476 | AE16: 48497 | AF16: =AF305 -> 0 | AG16: 0 | AH16: 320541
M17: =SUM(H17:L17) -> 0 | T17: 0 | AA17: 0 | AH17: 0
A18: Total Project Level | H18: =H22+H48+H82+H119+H160+H196+H238+H305 -> 430854.5 | I18: =I22+I48+I82+I119+I160+I196+I238+I305 -> 1492892 | J18: 326253.5 | K18: 0 | L18: 0 | M18: =SUM(H18:L18) -> 2250000 | O18: =O22+O48+O82+O119+O160+O238+O305 -> 0 | P18: =P22+P48+P82+P119+P160+P238+P305 -> 0 | Q18: =Q22+Q48+Q82+Q119+Q160+Q238+Q305 -> 0 | R18: =R22+R48+R82+R119+R160+R238+R305 -> 0 | S18: =S22+S48+S82+S119+S160+S238+S305 -> 0 | T18: =SUM(O18:S18) -> 0 | V18: =V22+V48+V82+V119+V160+V238+V305 -> 384854.5 | W18: =W22+W48+W82+W119+W160+W238+W305 -> 1368892 | X18: =X22+X48+X82+X119+X160+X238+X305 -> 296253.5 | Y18: =Y22+Y48+Y82+Y119+Y160+Y238+Y305 -> 0 | Z18: =Z22+Z48+Z82+Z119+Z160+Z238+Z305 -> 0 | AA18: =AA22+AA48+AA82+AA119+AA160+AA196+AA238+AA305 -> 2250000 | AB18: =AB22+AB82+AB119+AB160+AB305 -> 0 | AC18: =AC22+AC48+AC82+AC119+AC160+AC238+AC305 -> 384854.5 | AD18: =AD22+AD48+AD82+AD119+AD160+AD238+AD305 -> 1368892 | AE18: =AE22+AE48+AE82+AE119+AE160+AE238+AE305 -> 296253.5 | AF18: =AF22+AF48+AF82+AF119+AF160+AF238+AF305 -> 0 | AG18: 0 | AH18: =AH22+AH48+AH82+AH119+AH160+AH196+AH238+AH305 -> 2250000
A20: Output | B20: Activity | C20: Inputs | D20: Type | E20: Unit rate | G20: Quantity | H20: =H7 -> 2020 | I20: =I7 -> 2021 | J20: =J7 -> 2022 | K20: =K7 -> 2023 | L20: =L7 -> 2024 | M20: Total | O20: =O7 -> 2020 | P20: =P7 -> 2021 | Q20: =Q7 -> 2022 | R20: =R7 -> 2023 | S20: =S7 -> 2024 | T20: Total | V20: =V7 -> 2020 | W20: =W7 -> 2021 | X20: =X7 -> 2022 | Y20: =Y7 -> 2023 | Z20: =Z7 -> 2024 | AA20: Total | AC20: =AC7 -> 2020 | AD20: =AD7 -> 2021 | AE20: =AE7 -> 2022 | AF20: =AF7 -> 2023 | AG20: =AG7 -> 2024 | AH20: Total
C21: (Assumptions) | D21: Resource type* (IRIS)
A22: GR 01: Résultat 1 au niveau global et régional: - Les partenariats entre l’OIT et les acteurs régionaux (CIPRES, UEMOA) sont renforcés et les institutions régionales ont les capacités de soutenir leurs membres dans le renforcement de systèmes de protection sociale et de couverture santé qui soient durables, résistants aux chocs sécuritaires, sanitaires et climatiques, et inclusifs notamment des travailleurs de l'économie informelle. | H22: =SUM(H23:H47)/2 -> 7500 | I22: =SUM(I23:I47)/2 -> 45000 | J22: =SUM(J23:J47)/2 -> 2500 | K22: =SUM(K23:K47)/2 -> 0 | L22: =SUM(L23:L47)/2 -> 0 | M22: =SUM(H22:L22) -> 55000 | V22: =SUM(V23:V47)/2 -> 7500 | W22: =SUM(W23:W47)/2 -> 45000 | X22: =SUM(X23:X47)/2 -> 2500 | Y22: =SUM(Y23:Y47)/2 -> 0 | Z22: =SUM(Z23:Z47)/2 -> 0 | AA22: =SUM(V22:Z22) -> 55000 | AC22: =H22 -> 7500 | AD22: =I22 -> 45000 | AE22: =J22 -> 2500 | AF22: =K22 -> 0 | AG22: 0 | AH22: =SUM(AC22:AG22) -> 55000
A23: DO NOT DELETE
A24: GR 01.01 Le Protocole d’entente entre la CIPRES et l’OIT est mis à jour avec des thématiques et propositions concrètes pour une collaboration renforcée (par exemple extension de la couverture au secteur informel, renforcement de la couverture sanitaire, résilience des systèmes de protection sociale au chocs sécuritaires, sanitaires et climatiques, ...) | H24: =SUM(H25:H31) -> 2500 | I24: =SUM(I25:I31) -> 20000 | J24: =SUM(J25:J31) -> 0 | K24: =SUM(K25:K31) -> 0 | L24: =SUM(L25:L31) -> 0 | M24: =SUM(H24:L24) -> 22500 | V24: =SUM(V25:V31) -> 2500 | W24: =SUM(W25:W31) -> 20000 | X24: =SUM(X25:X31) -> 0 | Y24: =SUM(Y25:Y31) -> 0 | Z24: =SUM(Z25:Z31) -> 0 | AA24: =SUM(V24:Z24) -> 22500 | AC24: =IF(COUNT(AC25:AC31)=0,"",H24) -> 2500 | AD24: =IF(COUNT(AD25:AD31)=0,"",I24) -> 20000 | AE24: =IF(COUNT(AE25:AE31)=0,"",J24) ->  | AF24: =IF(COUNT(AF25:AF31)=0,"",K24) ->  | AG24: =IF(COUNT(AG25:AG31)=0,"",L24) ->  | AH24: =IF(COUNT(AC24:AG24)=0,"",M24) -> 22500
C25: DO NOT DELETE LINE
B26: 01.01.01 Révision du protocole d’entente actuel entre l’OIT et la CIPRES | C26: International consultant | D26: 531515_OTHER_INDIVIDUAL_CONTR | E26: par jour | F26: 250 | G26: 30 | H26: =F26*10 -> 2500 | I26: =F26*20 -> 5000 | M26: 7500 | V26: =H26-O26 -> 2500 | W26: 5000 | X26: 0 | Y26: =K26-R26 -> 0 | Z26: 0 | AA26: 7500 | AC26: =IF(H26=O26,"",IF(H26>O26,H26,-H26)) -> 2500 | AD26: =IF(I26=P26,"",IF(I26>P26,I26,-I26)) -> 5000 | AE26: =IF(J26=Q26,"",IF(J26>Q26,J26,-J26)) ->  | AF26: =IF(K26=R26,"",IF(K26>R26,K26,-K26)) ->  | AH26: 7500
I27: =F27*G27 -> 0 | M27: 0 | V27: 0 | W27: 0 | X27: 0 | Y27: =K27-R27 -> 0 | Z27: 0 | AA27: =SUM(V27:Z27) -> 0 | AD27: =IF(I27=P27,"",IF(I27>P27,I27,-I27)) ->  | AE27: =IF(J27=Q27,"",IF(J27>Q27,J27,-J27)) ->  | AF27: =IF(K27=R27,"",IF(K27>R27,K27,-K27)) -> 
M28: 0 | V28: =H28-O28 -> 0 | W28: =I28-P28 -> 0 | X28: =J28-Q28 -> 0 | Y28: =K28-R28 -> 0 | Z28: 0 | AA28: =SUM(V28:Z28) -> 0
B29: 01.01.02 Organisation de consultations avec les commissaires de la CIPRES en personne et/ou virtuelles. | C29: Atelier | D29: 581118_SEMINARS_OTHER | E29: par seminaire | F29: 15000 | G29: 1 | I29: =F29*G29 -> 15000 | M29: 15000 | V29: 0 | W29: 15000 | X29: 0 | Y29: 0 | Z29: 0 | AA29: 15000 | AD29: 15000 | AH29: 15000
I30: =F30*G30 -> 0 | M30: =SUM(H30:L30) -> 0 | V30: 0 | W30: 0 | X30: 0 | Y30: 0 | Z30: 0 | AA30: 0 | AC30: =IF(H30=O30,"",IF(H30>O30,H30,-H30)) ->  | AD30: =IF(I30=P30,"",IF(I30>P30,I30,-I30)) ->  | AE30: =IF(J30=Q30,"",IF(J30>Q30,J30,-J30)) ->  | AH30: =IF(COUNT(AC30:AG30)=0,"",M30) -> 
M31: 0 | V31: 0 | W31: 0 | X31: 0 | Y31: 0 | Z31: 0 | AA31: 0
A32: GR 01.02 Un rapport propose une stratégie d’engagement entre l’OIT et le Conseil du Travail et du Dialogue social de l’UEMOA notamment pour sensibiliser les membres sur l’extension de la couverture au secteur informel. | H32: =SUM(H33:H39) -> 2500 | I32: =SUM(I33:I39) -> 20000 | J32: =SUM(J33:J39) -> 0 | K32: =SUM(K33:K39) -> 0 | L32: =SUM(L33:L39) -> 0 | M32: =SUM(H32:L32) -> 22500 | V32: =SUM(V33:V39) -> 2500 | W32: =SUM(W33:W39) -> 20000 | X32: =SUM(X33:X39) -> 0 | Y32: =SUM(Y33:Y39) -> 0 | Z32: =SUM(Z33:Z39) -> 0 | AA32: =SUM(V32:Z32) -> 22500 | AC32: =IF(COUNT(AC33:AC39)=0,"",H32) -> 2500 | AD32: =IF(COUNT(AD33:AD39)=0,"",I32) -> 20000 | AE32: =IF(COUNT(AE33:AE39)=0,"",J32) ->  | AF32: =IF(COUNT(AF33:AF39)=0,"",K32) ->  | AG32: =IF(COUNT(AG33:AG39)=0,"",L32) ->  | AH32: =IF(COUNT(AC32:AG32)=0,"",M32) -> 22500
C33: DO NOT DELETE LINE
B34: 01.02.01 Revue des cadres d'interventions de l'UEMOA sur les mutuelles et l'extension de la sécurité sociale et préparation de la stratégie d'engagement | C34: International consultant | D34: 531515_OTHER_INDIVIDUAL_CONTR | E34: par jour | F34: 250 | G34: 30 | H34: =10*F34 -> 2500 | I34: =F34*20 -> 5000 | M34: =SUM(H34:L34) -> 7500 | V34: =H34-O34 -> 2500 | W34: =I34-P34 -> 5000 | X34: =J34-Q34 -> 0 | Y34: =K34-R34 -> 0 | Z34: =L34-S34 -> 0 | AA34: =SUM(V34:Z34) -> 7500 | AC34: =IF(H34=O34,"",IF(H34>O34,H34,-H34)) -> 2500 | AD34: =IF(I34=P34,"",IF(I34>P34,I34,-I34)) -> 5000 | AE34: =IF(J34=Q34,"",IF(J34>Q34,J34,-J34)) ->  | AF34: =IF(K34=R34,"",IF(K34>R34,K34,-K34)) ->  | AG34: =IF(L34=S34,"",IF(L34>S34,L34,-L34)) ->  | AH34: =IF(COUNT(AC34:AG34)=0,"",M34) -> 7500
M35: 0 | V35: 0 | W35: 0 | X35: 0 | Y35: 0 | Z35: 0 | AA35: =SUM(V35:Z35) -> 0
M36: 0 | V36: 0 | W36: 0 | X36: 0 | Y36: 0 | Z36: 0 | AA36: =SUM(V36:Z36) -> 0
B37: 01.02.02 Organisation d’ateliers de discussion et de validation de la stratégie finale. | C37: Atelier | D37: 581118_SEMINARS_OTHER | E37: par seminaire | F37: 15000 | G37: 1 | I37: =G37*F37 -> 15000 | M37: 15000 | V37: 0 | W37: 15000 | X37: 0 | Y37: 0 | Z37: 0 | AA37: 15000 | AD37: 15000 | AH37: 15000
M38: 0 | V38: 0 | W38: 0 | X38: 0 | Y38: 0 | Z38: 0 | AA38: =SUM(V38:Z38) -> 0
M39: 0 | V39: 0 | W39: 0 | X39: 0 | Y39: 0 | Z39: 0 | AA39: =SUM(V39:Z39) -> 0
A40: GR 01.03. L’OIT a renforcé ses appuis techniques auprès de la CIPRES et UEMOA dans le cadre de la préparation de documents stratégiques, la participation aux réunions et conférences de ces deux institutions, entre autres contributions. | H40: =SUM(H41:H47) -> 2500 | I40: =SUM(I41:I47) -> 5000 | J40: =SUM(J41:J47) -> 2500 | K40: =SUM(K41:K47) -> 0 | L40: =SUM(L41:L47) -> 0 | M40: 10000 | V40: =SUM(V41:V47) -> 2500 | W40: =SUM(W41:W47) -> 5000 | X40: =SUM(X41:X47) -> 2500 | Y40: =SUM(Y41:Y47) -> 0 | Z40: =SUM(Z41:Z47) -> 0 | AA40: =SUM(V40:Z40) -> 10000 | AC40: =IF(COUNT(AC41:AC47)=0,"",H40) -> 2500 | AD40: =IF(COUNT(AD41:AD47)=0,"",I40) -> 5000 | AE40: =IF(COUNT(AE41:AE47)=0,"",J40) -> 2500 | AF40: =IF(COUNT(AF41:AF47)=0,"",K40) ->  | AG40: =IF(COUNT(AG41:AG47)=0,"",L40) ->  | AH40: =IF(COUNT(AC40:AG40)=0,"",M40) -> 10000
C41: DO NOT DELETE LINE
B42: 01.03.01 Appui technique à la préparation des réunions et conférences de la CIPRES et de l'UEMOA, participation et présentations techniques lors de ces rencontres, | C42: Missions | D42: 701100_TRAVEL_PROJECT_STAFF | E42: par mission | F42: 2500 | G42: 4 | H42: =1*F42 -> 2500 | I42: =F42*2 -> 5000 | J42: =1*F42 -> 2500 | M42: 10000 | V42: =H42-O42 -> 2500 | W42: =I42-P42 -> 5000 | X42: =J42-Q42 -> 2500 | Y42: =K42-R42 -> 0 | Z42: 0 | AA42: 10000 | AC42: =IF(H42=O42,"",IF(H42>O42,H42,-H42)) -> 2500 | AD42: =IF(I42=P42,"",IF(I42>P42,I42,-I42)) -> 5000 | AE42: =IF(J42=Q42,"",IF(J42>Q42,J42,-J42)) -> 2500 | AF42: =IF(K42=R42,"",IF(K42>R42,K42,-K42)) ->  | AH42: =IF(COUNT(AC42:AG42)=0,"",M42) -> 10000
M43: 0 | V43: =H43-O43 -> 0 | W43: =I43-P43 -> 0 | X43: =J43-Q43 -> 0 | Y43: =K43-R43 -> 0 | Z43: 0 | AA43: =SUM(V43:Z43) -> 0 | AC43: =IF(H43=O43,"",IF(H43>O43,H43,-H43)) ->  | AD43: =IF(I43=P43,"",IF(I43>P43,I43,-I43)) ->  | AE43: =IF(J43=Q43,"",IF(J43>Q43,J43,-J43)) ->  | AF43: =IF(K43=R43,"",IF(K43>R43,K43,-K43)) ->  | AH43: =IF(COUNT(AC43:AG43)=0,"",M43) -> 
M44: 0 | V44: 0 | W44: 0 | X44: 0 | Y44: 0 | Z44: 0 | AA44: 0
B45: 01.03.02 Contributions techniques aux documents stratégiques, recommandations, avis, entre autres documents. | C45: Appui donné par l'équipe de projet | I45: =G45*F45 -> 0 | M45: 0 | V45: 0 | W45: 0 | X45: 0 | Y45: 0 | Z45: 0 | AA45: 0
M46: 0 | V46: =H46-O46 -> 0 | W46: =I46-P46 -> 0 | X46: =J46-Q46 -> 0 | Y46: =K46-R46 -> 0 | Z46: 0 | AA46: =SUM(V46:Z46) -> 0 | AC46: =IF(H46=O46,"",IF(H46>O46,H46,-H46)) ->  | AD46: =IF(I46=P46,"",IF(I46>P46,I46,-I46)) ->  | AE46: =IF(J46=Q46,"",IF(J46>Q46,J46,-J46)) ->  | AF46: =IF(K46=R46,"",IF(K46>R46,K46,-K46)) ->  | AH46: =IF(COUNT(AC46:AG46)=0,"",M46) -> 
M47: 0 | V47: 0 | W47: 0 | X47: 0 | Y47: 0 | Z47: 0 | AA47: 0
A48: BF 01: Résultat 1 Burkina Faso. - Les parties prenantes disposent des informations nécessaires et de capacités renforcées pour déterminer et valider l’architecture et les paramètres du régime d’assurance maladie universelle. | H48: =SUM(H49:H81)/2 -> 54700 | I48: =SUM(I49:I81)/2 -> 60300 | J48: =SUM(J49:J81)/2 -> 5000 | K48: =SUM(K49:K81)/2 -> 0 | L48: =SUM(L49:L81)/2 -> 0 | M48: =SUM(H48:L48) -> 120000 | V48: =SUM(V49:V81)/2 -> 54700 | W48: =SUM(W49:W81)/2 -> 60300 | X48: =SUM(X49:X81)/2 -> 5000 | Y48: =SUM(Y49:Y81)/2 -> 0 | Z48: =SUM(Z49:Z81)/2 -> 0 | AA48: =SUM(V48:Z48) -> 120000 | AC48: =H48 -> 54700 | AD48: =I48 -> 60300 | AE48: =J48 -> 5000 | AF48: =K48 -> 0 | AG48: 0 | AH48: =SUM(AC48:AG48) -> 120000
A49: DO NOT DELETE
A50: BF 01.01. Le paquet de soins de base est adopté comme garantie minimum pour tous, le coût de la provision de ces services à travers le RAMU est estimé et les mécanismes de financement durable sont identifiés. | H50: =SUM(H51:H69) -> 34700 | I50: =SUM(I51:I69) -> 40300 | J50: =SUM(J51:J69) -> 0 | K50: =SUM(K51:K69) -> 0 | L50: =SUM(L51:L69) -> 0 | M50: =SUM(H50:L50) -> 75000 | V50: =SUM(V51:V69) -> 34700 | W50: =SUM(W51:W69) -> 40300 | X50: =SUM(X51:X69) -> 0 | Y50: =SUM(Y51:Y69) -> 0 | Z50: =SUM(Z51:Z69) -> 0 | AA50: =SUM(V50:Z50) -> 75000 | AC50: =IF(COUNT(AC51:AC69)=0,"",H50) -> 34700 | AD50: =IF(COUNT(AD51:AD69)=0,"",I50) -> 40300 | AE50: =IF(COUNT(AE51:AE69)=0,"",J50) ->  | AF50: =IF(COUNT(AF51:AF69)=0,"",K50) ->  | AG50: =IF(COUNT(AG51:AG69)=0,"",L50) ->  | AH50: =IF(COUNT(AC50:AG50)=0,"",M50) -> 75000
C51: DO NOT DELETE LINE
B52: BF 01.01.01 Actualiser les hypothèses de l’étude actuarielle réalisée en 2016 et évaluer le coût du paquet de base et réaliser une simulation financière du RAMU en tenant compte de la nécessité de garantir la résilience du système face aux risques sanitaires, économiques, sécuritaires, humanitaires et liés au changement climatique | C52: Consultant externe international | D52: 531515_OTHER_INDIVIDUAL_CONTR | E52: par jour | F52: 450 | G52: 40 | H52: =40*F52 -> 18000 | M52: =SUM(H52:L52) -> 18000 | V52: =H52-O52 -> 18000 | W52: =I52-P52 -> 0 | X52: 0 | Y52: =K52-R52 -> 0 | Z52: 0 | AA52: =SUM(V52:Z52) -> 18000 | AC52: =IF(H52=O52,"",IF(H52>O52,H52,-H52)) -> 18000 | AD52: =IF(I52=P52,"",IF(I52>P52,I52,-I52)) ->  | AE52: =IF(J52=Q52,"",IF(J52>Q52,J52,-J52)) ->  | AF52: =IF(K52=R52,"",IF(K52>R52,K52,-K52)) ->  | AH52: =IF(COUNT(AC52:AG52)=0,"",M52) -> 18000
C53: voyage | E53: par vol | F53: 1600 | G53: 1 | H53: =G53*F53 -> 1600 | M53: 1600 | V53: 1600 | W53: 0 | X53: 0 | Y53: 0 | Z53: 0 | AA53: 1600 | AC53: 1600 | AH53: 1600
C54: consultant national | D54: 531515_OTHER_INDIVIDUAL_CONTR | E54: par jour | F54: 250 | G54: 30 | H54: =G54*F54 -> 7500 | M54: 7500 | V54: 7500 | W54: 0 | X54: 0 | Y54: 0 | Z54: 0 | AA54: 7500 | AC54: =IF(H54=O54,"",IF(H54>O54,H54,-H54)) -> 7500 | AD54: =IF(I54=P54,"",IF(I54>P54,I54,-I54)) ->  | AE54: =IF(J54=Q54,"",IF(J54>Q54,J54,-J54)) ->  | AF54: =IF(K54=R54,"",IF(K54>R54,K54,-K54)) ->  | AG54: =IF(L54=S54,"",IF(L54>S54,L54,-L54)) ->  | AH54: 7500
C55: frais de mission consultant international | E55: par jour | F55: 260 | G55: 40 | H55: =10*F55 -> 2600 | I55: =30*F55 -> 7800 | M55: 10400 | V55: =H55-O55 -> 2600 | W55: 7800 | X55: =J55-Q55 -> 0 | Y55: 0 | Z55: 0 | AA55: 10400 | AC55: 2600 | AD55: 7800 | AH55: 10400
B56: BF 01.01.02 Restituer les résultats de l’actualisation et organiser des sessions de dialogue sur le paquet de soins de base | C56: Réunion | D56: 581118_SEMINARS_OTHER | E56: par événement | F56: 10000 | G56: 1 | I56: =G56*F56 -> 10000 | M56: 10000 | V56: =H56-O56 -> 0 | W56: =I56-P56 -> 10000 | X56: =J56-Q56 -> 0 | Y56: =K56-R56 -> 0 | Z56: 0 | AA56: =SUM(V56:Z56) -> 10000 | AC56: =IF(H56=O56,"",IF(H56>O56,H56,-H56)) ->  | AD56: =IF(I56=P56,"",IF(I56>P56,I56,-I56)) -> 10000 | AE56: =IF(J56=Q56,"",IF(J56>Q56,J56,-J56)) ->  | AF56: =IF(K56=R56,"",IF(K56>R56,K56,-K56)) ->  | AH56: =IF(COUNT(AC56:AG56)=0,"",M56) -> 10000
M57: 0 | V57: 0 | W57: 0 | X57: 0 | Y57: 0 | Z57: 0 | AA57: 0
M58: 0 | V58: 0 | W58: 0 | X58: 0 | Y58: 0 | Z58: 0 | AA58: 0
B59: BF 01.01.03 Préparer un support d’aide à la décision pour le CNO-RAMU. | C59: Appui donné par l'équipe de projet | I59: =F59*G59 -> 0 | M59: 0 | V59: 0 | W59: 0 | X59: 0 | Y59: 0 | Z59: 0 | AA59: 0
M60: 0 | V60: 0 | W60: 0 | X60: 0 | Y60: 0 | Z60: 0 | AA60: 0
M61: 0 | V61: 0 | W61: 0 | X61: 0 | Y61: 0 | Z61: 0 | AA61: 0
B62: BF 01.01.04 Organiser et animer des sessions de formation pour l’ensemble des parties prenantes y inclus les organisation de travailleurs et d’employeurs et les organisations professionnelles et de la société civile actives notamment sur les questions de genre et d’inclusion des personnes en situation de handicapdes représentants des personnes concernées; | C62: Session de formation | D62: 581118_SEMINARS_OTHER | H62: 5000 | I62: 10000 | M62: =SUM(H62:L62) -> 15000 | V62: =H62-O62 -> 5000 | W62: 10000 | X62: 0 | Y62: 0 | Z62: 0 | AA62: =SUM(V62:Z62) -> 15000 | AC62: =IF(H62=O62,"",IF(H62>O62,H62,-H62)) -> 5000 | AD62: 10000 | AH62: =IF(COUNT(AC62:AG62)=0,"",M62) -> 15000
M63: 0 | V63: 0 | W63: 0 | X63: 0 | Y63: 0 | Z63: 0 | AA63: 0
M64: 0 | V64: 0 | W64: 0 | X64: 0 | Y64: 0 | Z64: 0 | AA64: 0
B65: BF 01.01.05 Etudes sur l'impact du changement climatique et autres risques sur les besoins en matière de protection sociale des populations cibles | C65: Consultant externe | D65: 531515_OTHER_INDIVIDUAL_CONTR | E65: par jour | F65: 250 | G65: 30 | I65: =G65*F65 -> 7500 | M65: 7500 | V65: 0 | W65: =I65-P65 -> 7500 | X65: 0 | Y65: 0 | Z65: 0 | AA65: 7500 | AD65: 7500 | AH65: 7500
M66: 0 | V66: 0 | W66: 0 | X66: 0 | Y66: 0 | Z66: 0 | AA66: 0
C67: Atelier de restition | D67: 581118_SEMINARS_OTHER | I67: 5000 | M67: =SUM(H67:L67) -> 5000 | V67: =H67-O67 -> 0 | W67: 5000 | X67: 0 | Y67: 0 | Z67: 0 | AA67: =SUM(V67:Z67) -> 5000 | AC67: =IF(H67=O67,"",IF(H67>O67,H67,-H67)) ->  | AD67: 5000 | AH67: =IF(COUNT(AC67:AG67)=0,"",M67) -> 5000
M68: =SUM(H68:L68) -> 0 | V68: =H68-O68 -> 0 | W68: 0 | X68: 0 | Y68: 0 | Z68: 0 | AA68: =SUM(V68:Z68) -> 0 | AC68: =IF(H68=O68,"",IF(H68>O68,H68,-H68)) ->  | AH68: =IF(COUNT(AC68:AG68)=0,"",M68) -> 
M69: =SUM(H69:L69) -> 0 | V69: =H69-O69 -> 0 | W69: 0 | X69: 0 | Y69: 0 | Z69: 0 | AA69: =SUM(V69:Z69) -> 0 | AC69: =IF(H69=O69,"",IF(H69>O69,H69,-H69)) ->  | AH69: =IF(COUNT(AC69:AG69)=0,"",M69) -> 
A70: BF 01.02 Le cadre juridique et l’architecture du RAMU sont identifiés et combinent efficacement un organe de prise de décision représentatif des populations couvertes, une gestion centralisée (CNAMU), le mouvement mutualiste et les mécanismes d’assistance. | H70: =SUM(H71:H80) -> 20000 | I70: =SUM(I71:I80) -> 20000 | J70: =SUM(J71:J80) -> 5000 | K70: =SUM(K71:K80) -> 0 | L70: =SUM(L71:L80) -> 0 | M70: 45000 | V70: =SUM(V71:V80) -> 20000 | W70: =SUM(W71:W80) -> 20000 | X70: =SUM(X71:X80) -> 5000 | Y70: =SUM(Y71:Y80) -> 0 | Z70: =SUM(Z71:Z80) -> 0 | AA70: =SUM(V70:Z70) -> 45000 | AC70: =IF(COUNT(AC71:AC80)=0,"",H70) -> 20000 | AD70: =IF(COUNT(AD71:AD80)=0,"",I70) -> 20000 | AE70: =IF(COUNT(AE71:AE80)=0,"",J70) -> 5000 | AF70: =IF(COUNT(AF71:AF80)=0,"",K70) ->  | AG70: =IF(COUNT(AG71:AG80)=0,"",L70) ->  | AH70: =IF(COUNT(AC70:AG70)=0,"",M70) -> 45000
C71: DO NOT DELETE LINE
B72: BF 01.02.01 Réaliser un inventaire des mutuelles sociales avec un mapping des zones d’interventions et des populations cibles ; | C72: Consultant externe | D72: 531515_OTHER_INDIVIDUAL_CONTR | E72: par jour | F72: 250 | G72: 60 | H72: =20*F72 -> 5000 | I72: =40*F72 -> 10000 | M72: 15000 | V72: =H72-O72 -> 5000 | W72: =I72-P72 -> 10000 | X72: =J72-Q72 -> 0 | Y72: =K72-R72 -> 0 | Z72: 0 | AA72: =SUM(V72:Z72) -> 15000 | AC72: =IF(H72=O72,"",IF(H72>O72,H72,-H72)) -> 5000 | AD72: =IF(I72=P72,"",IF(I72>P72,I72,-I72)) -> 10000 | AE72: =IF(J72=Q72,"",IF(J72>Q72,J72,-J72)) ->  | AF72: =IF(K72=R72,"",IF(K72>R72,K72,-K72)) ->  | AH72: 15000
M73: 0 | V73: 0 | W73: 0 | X73: 0 | Y73: 0 | Z73: 0 | AA73: 0
M74: 0 | V74: 0 | W74: 0 | X74: 0 | Y74: 0 | Z74: 0 | AA74: 0
B75: BF 01.02.02 Organiser des sessions de dialogue sur les mécanismes et la répartition des fonctions de gestion technique. | C75: Session de dialogue | D75: 581118_SEMINARS_OTHER | E75: par événement | F75: 15000 | G75: 1 | H75: 5000 | I75: 10000 | M75: 15000 | V75: 5000 | W75: =I75-P75 -> 10000 | X75: 0 | Y75: =K75-R75 -> 0 | Z75: 0 | AA75: =SUM(V75:Z75) -> 15000 | AC75: 5000 | AD75: =IF(I75=P75,"",IF(I75>P75,I75,-I75)) -> 10000 | AF75: =IF(K75=R75,"",IF(K75>R75,K75,-K75)) ->  | AH75: 15000
M76: 0 | V76: 0 | W76: 0 | X76: 0 | Y76: 0 | Z76: 0 | AA76: 0
M77: 0 | V77: 0 | W77: 0 | X77: 0 | Y77: 0 | Z77: 0 | AA77: 0
B78: BF 01.02.03 Préparer les textes d’application pour la mise en œuvre de la loi n°060-2015/CNT du 05 septembre 2015 portant régime d’assurance maladie universelle (RAMU) au Burkina Faso. | C78: Consultant externe | D78: 531515_OTHER_INDIVIDUAL_CONTR | E78: par jour | F78: 250 | G78: 60 | H78: =40*F78 -> 10000 | J78: 5000 | M78: 15000 | V78: 10000 | W78: 0 | X78: 5000 | Y78: 0 | Z78: 0 | AA78: 15000 | AC78: 10000 | AE78: 5000 | AH78: 15000
M79: 0 | V79: 0 | W79: 0 | X79: 0 | Y79: 0 | Z79: 0 | AA79: 0
M80: 0 | V80: 0 | W80: 0 | X80: 0 | Y80: 0 | Z80: 0 | AA80: 0
A81: DO NOT DELETE
A82: SN 01: Résultat 1 Sénégal. - Les parties prenantes disposent des informations nécessaires et de capacités renforcées pour consolider les arrangements juridiques et institutionnels de la branche santé du régime simplifié, notamment son articulation avec l'assurance maladie universelle, et pour faciliter un passage à l’échelle. | H82: =SUM(H83:H118)/2 -> 65500 | I82: =SUM(I83:I118)/2 -> 55000 | J82: =SUM(J83:J118)/2 -> 12000 | K82: =SUM(K83:K118)/2 -> 0 | L82: =SUM(L83:L118)/2 -> 0 | M82: =SUM(H82:L82) -> 132500 | V82: =SUM(V83:V118)/2 -> 65500 | W82: =SUM(W83:W118)/2 -> 55000 | X82: =SUM(X83:X118)/2 -> 12000 | Y82: =SUM(Y83:Y118)/2 -> 0 | Z82: =SUM(Z83:Z118)/2 -> 0 | AA82: =SUM(V82:Z82) -> 132500 | AC82: =H82 -> 65500 | AD82: =I82 -> 55000 | AE82: =J82 -> 12000 | AF82: =K82 -> 0 | AG82: 0 | AH82: =SUM(AC82:AG82) -> 132500
A83: DO NOT DELETE
A84: SN 01.01 Les paramètres techniques de la branche santé du régime simplifié sont testés et ajustés, et permettent le passage à l’échelle à l'ensemble des travailleurs de l'économie informelle. | H84: =SUM(H85:H100) -> 57500 | I84: =SUM(I85:I100) -> 20000 | J84: =SUM(J85:J100) -> 0 | K84: =SUM(K85:K100) -> 0 | L84: 0 | M84: =SUM(H84:L84) -> 77500 | V84: =SUM(V85:V100) -> 57500 | W84: =SUM(W85:W100) -> 20000 | X84: =SUM(X85:X100) -> 0 | Y84: =SUM(Y85:Y100) -> 0 | Z84: 0 | AA84: =SUM(V84:Z84) -> 77500 | AC84: =IF(COUNT(AC85:AC100)=0,"",H84) -> 57500 | AD84: =IF(COUNT(AD85:AD100)=0,"",I84) -> 20000 | AE84: =IF(COUNT(AE85:AE100)=0,"",J84) ->  | AF84: =IF(COUNT(AF85:AF100)=0,"",K84) ->  | AH84: =IF(COUNT(AC84:AG84)=0,"",M84) -> 77500
C85: DO NOT DELETE LINE
B86: SN 01.01.01 : Révision des dernières études de tarification et d’articulation en la branche santé du régime simplifié et la CMU et fixation des paramètres de démarrage du pilote et les modalités d’engagement des subventions de l’Etat et fixer le cadre budgétaire et réglementaire du financement de la branche santé du régime simplifié. | M86: =SUM(H86:L86) -> 0 | V86: =H86-O86 -> 0 | W86: 0 | X86: 0 | Y86: 0 | Z86: 0 | AA86: =SUM(V86:Z86) -> 0 | AC86: =IF(H86=O86,"",IF(H86>O86,H86,-H86)) ->  | AH86: =IF(COUNT(AC86:AG86)=0,"",M86) -> 
C87: Consultant | D87: 514170_NAT_CONSULTANTS | E87: par jour | F87: 250 | G87: 70 | H87: =F87*G87 -> 17500 | M87: 17500 | V87: 17500 | W87: 0 | X87: 0 | Y87: 0 | Z87: 0 | AA87: 17500 | AC87: 17500 | AH87: 17500
M88: 0 | V88: 0 | W88: 0 | X88: 0 | Y88: 0 | Z88: 0 | AA88: 0
B89: SN 01.01.02 : Mener une exploration rapide et des discussions pour arrêter définitivement les secteurs d’amorçage qui seront retenus en fonction des travaux déjà réalisés et du niveau d’organisation (artisanat, commerce, transformation agroalimentaire, etc.). | M89: 0 | V89: 0 | W89: 0 | X89: 0 | Y89: 0 | Z89: 0 | AA89: 0
C90: Consultant | D90: 514170_NAT_CONSULTANTS | E90: par jour | F90: 250 | G90: 28 | H90: =F90*G90 -> 7000 | M90: 7000 | V90: 7000 | W90: 0 | X90: 0 | Y90: 0 | Z90: 0 | AA90: 7000 | AC90: 7000 | AH90: 7000
C91: Atelier | D91: 581118_SEMINARS_OTHER | E91: par événement | F91: 3000 | G91: 1 | H91: =F91*G91 -> 3000 | M91: 3000 | V91: 3000 | W91: 0 | X91: 0 | Y91: 0 | Z91: 0 | AA91: 3000 | AC91: 3000 | AH91: 3000
B92: SN 01.01.03 : Elaborer la partie règlementaire et institutionnelle devant permettre le démarrage à titre pilote de la branche santé du régime simplifié. | M92: 0 | V92: 0 | W92: 0 | X92: 0 | Y92: 0 | Z92: 0 | AA92: 0
C93: Consultant | D93: 514170_NAT_CONSULTANTS | E93: par jour | F93: 250 | G93: 45 | H93: =F93*G93 -> 11250 | M93: 11250 | V93: 11250 | W93: 0 | X93: 0 | Y93: 0 | Z93: 0 | AA93: 11250 | AC93: 11250 | AH93: 11250
C94: Atelier | D94: 581118_SEMINARS_OTHER | E94: par evenement | F94: 3750 | G94: 1 | H94: 3750 | M94: =SUM(H94:L94) -> 3750 | V94: 3750 | W94: 0 | X94: 0 | Y94: 0 | Z94: 0 | AA94: 3750 | AC94: 3750 | AH94: 3750
B95: SN 01.01.04 : Définir, adopter et mettre en œuvre le schéma financier du régime simplifié, y compris les accords de convention avec les prestataires de soins, les procédures d’affiliation de paiement et de recouvrement des cotisations, de contrôle, de radiation, etc. | M95: =SUM(H95:L95) -> 0 | V95: =H95-O95 -> 0 | W95: 0 | X95: 0 | Y95: 0 | Z95: 0 | AA95: =SUM(V95:Z95) -> 0 | AC95: =IF(H95=O95,"",IF(H95>O95,H95,-H95)) ->  | AH95: =IF(COUNT(AC95:AG95)=0,"",M95) -> 
C96: Consultant | D96: 514170_NAT_CONSULTANTS | E96: par jour | F96: 250 | G96: 60 | H96: =F96*G96 -> 15000 | M96: =SUM(H96:L96) -> 15000 | V96: =H96-O96 -> 15000 | W96: 0 | X96: 0 | Y96: 0 | Z96: 0 | AA96: =SUM(V96:Z96) -> 15000 | AC96: =IF(H96=O96,"",IF(H96>O96,H96,-H96)) -> 15000 | AH96: =IF(COUNT(AC96:AG96)=0,"",M96) -> 15000
M97: =SUM(H97:L97) -> 0 | V97: =H97-O97 -> 0 | W97: 0 | X97: 0 | Y97: 0 | Z97: 0 | AA97: =SUM(V97:Z97) -> 0 | AC97: =IF(H97=O97,"",IF(H97>O97,H97,-H97)) ->  | AH97: =IF(COUNT(AC97:AG97)=0,"",M97) -> 
B98: SN 01.01.05 : Préparer et superviser la capitalisation de la phase pilote de mise en œuvre de la branche santé du régime simplifié pour guider la mise à l’échelle. | M98: 0 | V98: 0 | W98: 0 | X98: 0 | Y98: 0 | Z98: 0 | AA98: 0
C99: consultant | D99: 514170_NAT_CONSULTANTS | E99: par jour | F99: 250 | G99: 60 | I99: 15000 | M99: 15000 | V99: 0 | W99: 15000 | X99: 0 | Y99: =J99-R99 -> 0 | Z99: 0 | AA99: 15000 | AD99: 15000 | AF99: =IF(J99=R99,"",IF(J99>R99,J99,-J99)) ->  | AH99: 15000
C100: Edition | D100: 531115_SUBCONTRACTS_GRL | E100: par évenement | F100: 5000 | G100: 1 | I100: 5000 | M100: 5000 | V100: 0 | W100: 5000 | X100: 0 | Y100: =J100-R100 -> 0 | Z100: 0 | AA100: 5000 | AD100: 5000 | AF100: =IF(J100=R100,"",IF(J100>R100,J100,-J100)) ->  | AH100: 5000
A101: SN 01.02 Les arrangements institutionnels ainsi que les capacités des parties prenantes et des personnels techniques sont renforcées pour une mise en œuvre effective de la branche santé et des propositions d'extension et de conciliations opérationnelles vers d'autres branches du régime simplifié. | H101: =SUM(H102:H117) -> 8000 | I101: =SUM(I102:I117) -> 35000 | J101: =SUM(J102:J117) -> 12000 | K101: =SUM(K102:K117) -> 0 | L101: 0 | M101: =SUM(H101:L101) -> 55000 | V101: =SUM(V102:V117) -> 8000 | W101: =SUM(W102:W117) -> 35000 | X101: =SUM(X102:X117) -> 12000 | Y101: =SUM(Y102:Y117) -> 0 | Z101: 0 | AA101: =SUM(V101:Z101) -> 55000 | AC101: =IF(COUNT(AC102:AC117)=0,"",H101) -> 8000 | AD101: =IF(COUNT(AD102:AD117)=0,"",I101) -> 35000 | AE101: =IF(COUNT(AE102:AE117)=0,"",J101) -> 12000 | AF101: =IF(COUNT(AF102:AF117)=0,"",K101) ->  | AH101: =IF(COUNT(AC101:AG101)=0,"",M101) -> 55000
C102: DO NOT DELETE LINE
B103: SN 01.02.01 : Définir les derniers contours et arrangements entre l’ANCMU, l’ICAMO et le ministère du Travail sur l’ancrage de la branche santé du régime simplifié. | M103: =SUM(H103:L103) -> 0 | V103: =H103-O103 -> 0 | W103: 0 | X103: 0 | Y103: 0 | Z103: 0 | AA103: =SUM(V103:Z103) -> 0 | AC103: =IF(H103=O103,"",IF(H103>O103,H103,-H103)) ->  | AH103: =IF(COUNT(AC103:AG103)=0,"",M103) -> 
C104: Séminaire | D104: 581118_SEMINARS_OTHER | E104: par événement | F104: 5500 | G104: 1 | H104: 5500 | M104: 5500 | V104: 5500 | W104: 0 | X104: 0 | Y104: 0 | Z104: 0 | AA104: 5500 | AC104: 5500 | AH104: 5500
C105: Consultant | D105: 514170_NAT_CONSULTANTS | E105: par jour | F105: 250 | G105: 10 | H105: =F105*G105 -> 2500 | M105: 2500 | V105: 2500 | W105: 0 | X105: 0 | Y105: 0 | Z105: 0 | AA105: 2500 | AC105: 2500 | AH105: 2500
B106: SN 01.02.02 : Elaborer un manuel de procédure et de gestion technique spécifique à la branche santé du régime simplifié. | M106: 0 | V106: 0 | W106: 0 | X106: 0 | Y106: 0 | Z106: 0 | AA106: 0
C107: Consultant | D107: 514170_NAT_CONSULTANTS | E107: par jour | F107: 250 | G107: 60 | I107: 15000 | M107: 15000 | V107: 0 | W107: 15000 | X107: 0 | Y107: 0 | Z107: 0 | AA107: 15000 | AD107: 15000 | AH107: 15000
M108: 0 | V108: 0 | W108: 0 | X108: 0 | Y108: 0 | Z108: 0 | AA108: 0
B109: SN 01.02.03 : Produire les différents supports de gestion (fiche d’adhésion, carte d’assuré, etc.). | M109: =SUM(H109:L109) -> 0 | V109: =H109-O109 -> 0 | W109: 0 | X109: 0 | Y109: 0 | Z109: 0 | AA109: =SUM(V109:Z109) -> 0 | AC109: =IF(H109=O109,"",IF(H109>O109,H109,-H109)) ->  | AH109: =IF(COUNT(AC109:AG109)=0,"",M109) -> 
C110: Edition | D110: 531115_SUBCONTRACTS_GRL | E110: par évenemnt | F110: 20000 | G110: 1 | I110: 20000 | M110: =SUM(H110:L110) -> 20000 | V110: =H110-O110 -> 0 | W110: 20000 | X110: 0 | Y110: 0 | Z110: 0 | AA110: =SUM(V110:Z110) -> 20000 | AC110: =IF(H110=O110,"",IF(H110>O110,H110,-H110)) ->  | AD110: 20000 | AH110: =IF(COUNT(AC110:AG110)=0,"",M110) -> 20000
M111: =SUM(H111:L111) -> 0 | V111: =H111-O111 -> 0 | W111: 0 | X111: 0 | Y111: 0 | Z111: 0 | AA111: =SUM(V111:Z111) -> 0 | AC111: =IF(H111=O111,"",IF(H111>O111,H111,-H111)) ->  | AH111: =IF(COUNT(AC111:AG111)=0,"",M111) -> 
B112: SN 01.02.04 : Mener une étude d’articulation opérationnelle et élaborer un manuel de gestion devant régir la mise en œuvre du guichet unique et l’interdépendance des institutions dans le cadre d’une cotisation sociale unique (ICAMO, CSS, IPRES). | M112: 0 | V112: 0 | W112: 0 | X112: 0 | Y112: 0 | Z112: 0 | AA112: 0
C113: Consultant | D113: 514170_NAT_CONSULTANTS | E113: par jour | F113: 250 | G113: 24 | J113: 6000 | M113: 6000 | V113: 0 | W113: 0 | X113: 6000 | Y113: 0 | Z113: 0 | AA113: 6000 | AE113: 6000 | AH113: 6000
M114: 0 | V114: 0 | W114: 0 | X114: 0 | Y114: 0 | Z114: 0 | AA114: 0
B115: SN 01.02.05 : Mener une cartographie du dispositif infrastructurel (maillage des agences et directions de la CSS et de l’IPRES) et proposer sur la base d’entretiens avec les autorités des trois IPS et la tutelle une forme d’arrangement pour la faisabilité du guichet unique. | M115: 0 | V115: 0 | W115: 0 | X115: 0 | Y115: 0 | Z115: 0 | AA115: 0
C116: Consultant | D116: 514170_NAT_CONSULTANTS | E116: Par jour | F116: 250 | G116: 24 | J116: 6000 | M116: 6000 | V116: 0 | W116: 0 | X116: 6000 | Y116: 0 | Z116: 0 | AA116: 6000 | AE116: 6000 | AH116: 6000
M117: 0 | V117: 0 | W117: 0 | X117: 0 | Y117: 0 | Z117: 0 | AA117: 0
A118: DO NOT DELETE
A119: GR 02: Résultat 2 Niveau global et régional. - L’OIT facilite le déploiement des systèmes de protection sociale par le développement d’outils de formation et de connaissance, par la mise à disposition d’une assistance technique cadrée sur les besoins et par un partage de connaissances et d’expériences au niveau régional et global propice à déclencher des effets multiplicateurs dans d’autres pays africains. | H119: =SUM(H120:H159)/2 -> 33000 | I119: =SUM(I120:I159)/2 -> 145000 | J119: =SUM(J120:J159)/2 -> 10000 | K119: =SUM(K120:K159)/2 -> 0 | L119: =SUM(L120:L159)/2 -> 0 | M119: =SUM(H119:L119) -> 188000 | V119: =SUM(V120:V159)/2 -> 33000 | W119: =SUM(W120:W159)/2 -> 145000 | X119: =SUM(X120:X159)/2 -> 10000 | Y119: =SUM(Y120:Y159)/2 -> 0 | Z119: =SUM(Z120:Z159)/2 -> 0 | AA119: =SUM(V119:Z119) -> 188000 | AC119: =H119 -> 33000 | AD119: =I119 -> 145000 | AE119: =J119 -> 10000 | AF119: =K119 -> 0 | AG119: 0 | AH119: =SUM(AC119:AG119) -> 188000
A120: DO NOT DELETE
A121: GR 02.01. Des modules de partage de connaissance ciblés sur les besoins spécifiques des pays sont développés. Ces produits seront développés en étroite coordination avec d’autres équipes de l’OIT au niveau des pays de l'Afrique de l'Ouest. | H121: =SUM(H122:H128) -> 12000 | I121: =SUM(I122:I128) -> 24000 | J121: =SUM(J122:J128) -> 7000 | K121: =SUM(K122:K128) -> 0 | L121: =SUM(L122:L128) -> 0 | M121: =SUM(H121:L121) -> 43000 | V121: =SUM(V122:V128) -> 12000 | W121: =SUM(W122:W128) -> 24000 | X121: =SUM(X122:X128) -> 7000 | Y121: =SUM(Y122:Y128) -> 0 | Z121: =SUM(Z122:Z128) -> 0 | AA121: =SUM(V121:Z121) -> 43000 | AC121: =IF(COUNT(AC122:AC128)=0,"",H121) -> 12000 | AD121: =IF(COUNT(AD122:AD128)=0,"",I121) -> 24000 | AE121: =IF(COUNT(AE122:AE128)=0,"",J121) -> 7000 | AF121: =IF(COUNT(AF122:AF128)=0,"",K121) ->  | AG121: =IF(COUNT(AG122:AG128)=0,"",L121) ->  | AH121: =IF(COUNT(AC121:AG121)=0,"",M121) -> 43000
C122: DO NOT DELETE LINE
B123: GR 02.01.01 Produire les modules. | C123: Développement de matériel de formation | D123: 531111_RESEARCH | E123: par module | F123: 12000 | G123: 3 | H123: =1*F123 -> 12000 | I123: =2*F123 -> 24000 | M123: 36000 | V123: =H123-O123 -> 12000 | W123: =I123-P123 -> 24000 | X123: =J123-Q123 -> 0 | Y123: =K123-R123 -> 0 | Z123: 0 | AA123: =SUM(V123:Z123) -> 36000 | AC123: =IF(H123=O123,"",IF(H123>O123,H123,-H123)) -> 12000 | AD123: =IF(I123=P123,"",IF(I123>P123,I123,-I123)) -> 24000 | AE123: =IF(J123=Q123,"",IF(J123>Q123,J123,-J123)) ->  | AF123: =IF(K123=R123,"",IF(K123>R123,K123,-K123)) ->  | AH123: =IF(COUNT(AC123:AG123)=0,"",M123) -> 36000
M124: 0 | V124: 0 | W124: 0 | X124: 0 | Y124: 0 | Z124: 0 | AA124: 0 | AC124: =IF(H124=O124,"",IF(H124>O124,H124,-H124)) ->  | AD124: =IF(I124=P124,"",IF(I124>P124,I124,-I124)) ->  | AE124: =IF(J124=Q124,"",IF(J124>Q124,J124,-J124)) ->  | AF124: =IF(K124=R124,"",IF(K124>R124,K124,-K124)) ->  | AH124: =IF(COUNT(AC124:AG124)=0,"",M124) -> 
M125: 0 | V125: 0 | W125: 0 | X125: 0 | Y125: 0 | Z125: 0 | AA125: 0
B126: GR 02.01.02 Organiser des sessions de partage de connaissances et de validations des modules. | C126: Réunion en personne ou virtuelle | D126: 581118_SEMINARS_OTHER | E126: par événement | F126: 7000 | G126: 1 | J126: =F126*G126 -> 7000 | M126: =SUM(H126:L126) -> 7000 | V126: 0 | W126: =I126-P126 -> 0 | X126: 7000 | Y126: =K126-R126 -> 0 | Z126: 0 | AA126: =SUM(V126:Z126) -> 7000 | AD126: =IF(I126=P126,"",IF(I126>P126,I126,-I126)) ->  | AE126: 7000 | AF126: =IF(K126=R126,"",IF(K126>R126,K126,-K126)) ->  | AH126: 7000
M127: 0 | V127: 0 | W127: 0 | X127: 0 | Y127: 0 | Z127: 0 | AA127: 0
M128: 0 | V128: 0 | W128: 0 | X128: 0 | Y128: 0 | Z128: 0 | AA128: 0
A129: GR 02.02. Un MOOC (Massive Online Open Course) sur la protection sociale est développé et lancé pendant la durée du projet ; il vise différents publics cibles dans les deux pays et potentiellement dans un plus grand nombre de pays de la sous-région. | H129: =SUM(H130:H142) -> 0 | I129: =SUM(I130:I142) -> 85000 | J129: =SUM(J130:J142) -> 0 | K129: =SUM(K130:K142) -> 0 | L129: 0 | M129: =SUM(H129:L129) -> 85000 | V129: =SUM(V130:V142) -> 0 | W129: =SUM(W130:W142) -> 85000 | X129: =SUM(X130:X142) -> 0 | Y129: =SUM(Y130:Y142) -> 0 | Z129: 0 | AA129: =SUM(V129:Z129) -> 85000 | AC129: =IF(COUNT(AC130:AC142)=0,"",H129) ->  | AD129: =IF(COUNT(AD130:AD142)=0,"",I129) -> 85000 | AE129: =IF(COUNT(AE130:AE142)=0,"",J129) ->  | AF129: =IF(COUNT(AF130:AF142)=0,"",K129) ->  | AH129: =IF(COUNT(AC129:AG129)=0,"",M129) -> 85000
C130: DO NOT DELETE LINE
B131: GR 02.02.01 Coordonner le développement (la majorité sera effectués par l'expert protection sociale) | C131: Appui donné par l'équipe de projet | M131: 0 | V131: =H131-O131 -> 0 | W131: 0 | X131: 0 | Y131: =K131-R131 -> 0 | Z131: 0 | AA131: 0 | AC131: =IF(H131=O131,"",IF(H131>O131,H131,-H131)) ->  | AF131: =IF(K131=R131,"",IF(K131>R131,K131,-K131)) ->  | AH131: =IF(COUNT(AC131:AG131)=0,"",M131) -> 
M132: 0 | V132: 0 | W132: 0 | X132: 0 | Y132: 0 | Z132: 0 | AA132: 0
M133: 0 | V133: 0 | W133: 0 | X133: 0 | Y133: 0 | Z133: 0 | AA133: 0
B134: GR 02.02.02 Produire les contenus du MOOC. | C134: Développement de matériel de formation | D134: 531111_RESEARCH | E134: par module | F134: 1 | G134: 18000 | I134: =F134*G134 -> 18000 | M134: 18000 | V134: 0 | W134: 18000 | X134: 0 | Y134: 0 | Z134: 0 | AA134: =SUM(V134:Z134) -> 18000 | AC134: =IF(H134=O134,"",IF(H134>O134,H134,-H134)) ->  | AD134: =IF(I134=P134,"",IF(I134>P134,I134,-I134)) -> 18000 | AE134: =IF(J134=Q134,"",IF(J134>Q134,J134,-J134)) ->  | AF134: =IF(K134=R134,"",IF(K134>R134,K134,-K134)) ->  | AH134: =IF(COUNT(AC134:AG134)=0,"",M134) -> 18000
M135: 0 | V135: 0 | W135: 0 | X135: 0 | Y135: 0 | Z135: 0 | AA135: 0
M136: 0 | V136: 0 | W136: 0 | X136: 0 | Y136: 0 | Z136: 0 | AA136: =SUM(V136:Z136) -> 0
B137: GR 02.02.03 Produire et éditer les vidéos | C137: Consultant externe | D137: 531515_OTHER_INDIVIDUAL_CONTR | E137: par module | F137: 1 | G137: 25000 | I137: =F137*G137 -> 25000 | M137: 25000 | V137: =H137-O137 -> 0 | W137: =I137-P137 -> 25000 | X137: =J137-Q137 -> 0 | Y137: =K137-R137 -> 0 | Z137: 0 | AA137: =SUM(V137:Z137) -> 25000 | AD137: 25000 | AH137: 25000
M138: 0 | V138: 0 | W138: 0 | X138: 0 | Y138: 0 | Z138: 0 | AA138: 0
M139: 0 | V139: 0 | W139: 0 | X139: 0 | Y139: 0 | Z139: 0 | AA139: =SUM(V139:Z139) -> 0
B140: GR 02.02.04 Mettre en place le MOOC, création et facilitation du cours, marketing du MOOC. | C140: Subcontractor | D140: 531515_OTHER_INDIVIDUAL_CONTR | E140: par MOOC | F140: 1 | G140: 42000 | I140: =1*G140 -> 42000 | M140: 42000 | V140: =H140-O140 -> 0 | W140: 42000 | X140: 0 | Y140: 0 | Z140: 0 | AA140: 42000 | AD140: 42000 | AH140: 42000
M141: 0 | V141: 0 | W141: 0 | X141: 0 | Y141: 0 | Z141: 0 | AA141: 0
M142: 0 | V142: 0 | W142: 0 | X142: 0 | Y142: 0 | Z142: 0 | AA142: 0
A143: GR 02.03 Un appui du hub santé de l’OIT au Burkina Faso et au Sénégal, sur une ou deux thématiques pertinentes dans le cadre de l’extension de la couverture sanitaire dans les deux pays et qui permet de faciliter un échange et des effets multiplicateurs au niveau régional. | H143: =SUM(H144:H150) -> 15000 | I143: =SUM(I144:I150) -> 15000 | J143: =SUM(J144:J150) -> 0 | K143: =SUM(K144:K150) -> 0 | L143: =SUM(L144:L150) -> 0 | M143: =SUM(H143:L143) -> 30000 | V143: =SUM(V144:V150) -> 15000 | W143: =SUM(W144:W150) -> 15000 | X143: =SUM(X144:X150) -> 0 | Y143: =SUM(Y144:Y150) -> 0 | Z143: =SUM(Z144:Z150) -> 0 | AA143: =SUM(V143:Z143) -> 30000 | AC143: =IF(COUNT(AC144:AC150)=0,"",H143) -> 15000 | AD143: =IF(COUNT(AD144:AD150)=0,"",I143) -> 15000 | AE143: =IF(COUNT(AE144:AE150)=0,"",J143) ->  | AF143: =IF(COUNT(AF144:AF150)=0,"",K143) ->  | AG143: =IF(COUNT(AG144:AG150)=0,"",L143) ->  | AH143: =IF(COUNT(AC143:AG143)=0,"",M143) -> 30000
C144: DO NOT DELETE LINE
B145: GR 02.03.01 Partage de connaissances, suggestions d'amélioration, appui conseil | C145: Consultant externe | D145: 531515_OTHER_INDIVIDUAL_CONTR | E145: par thématique | F145: 2 | G145: 15000 | H145: =1*G145 -> 15000 | I145: =1*G145 -> 15000 | M145: 30000 | V145: =H145-O145 -> 15000 | W145: =I145-P145 -> 15000 | X145: =J145-Q145 -> 0 | Y145: =K145-R145 -> 0 | Z145: 0 | AA145: =SUM(V145:Z145) -> 30000 | AC145: =IF(H145=O145,"",IF(H145>O145,H145,-H145)) -> 15000 | AD145: =IF(I145=P145,"",IF(I145>P145,I145,-I145)) -> 15000 | AE145: =IF(J145=Q145,"",IF(J145>Q145,J145,-J145)) ->  | AF145: =IF(K145=R145,"",IF(K145>R145,K145,-K145)) ->  | AH145: 30000
M146: 0 | V146: 0 | W146: 0 | X146: 0 | Y146: 0 | Z146: 0 | AA146: 0
M147: 0 | V147: 0 | W147: 0 | X147: 0 | Y147: 0 | Z147: 0 | AA147: 0
M148: =SUM(H148:L148) -> 0 | V148: 0 | W148: =I148-P148 -> 0 | X148: 0 | Y148: =K148-R148 -> 0 | Z148: 0 | AA148: =SUM(V148:Z148) -> 0 | AD148: =IF(I148=P148,"",IF(I148>P148,I148,-I148)) ->  | AF148: =IF(K148=R148,"",IF(K148>R148,K148,-K148)) -> 
M149: 0 | V149: 0 | W149: 0 | X149: 0 | Y149: 0 | Z149: 0 | AA149: 0
M150: 0 | V150: 0 | W150: 0 | X150: 0 | Y150: 0 | Z150: 0 | AA150: 0
A151: GR 02.04 Une stratégie et des outils de communication et visibilité, de suivi et évaluation du projet sont développés. | H151: =SUM(H152:H158) -> 6000 | I151: =SUM(I152:I158) -> 21000 | J151: =SUM(J152:J158) -> 3000 | K151: =SUM(K152:K158) -> 0 | L151: =SUM(L152:L158) -> 0 | M151: =SUM(H151:L151) -> 30000 | V151: =SUM(V152:V158) -> 6000 | W151: =SUM(W152:W158) -> 21000 | X151: =SUM(X152:X158) -> 3000 | Y151: =SUM(Y152:Y158) -> 0 | Z151: =SUM(Z152:Z158) -> 0 | AA151: =SUM(V151:Z151) -> 30000 | AC151: =IF(COUNT(AC152:AC158)=0,"",H151) -> 6000 | AD151: =IF(COUNT(AD152:AD158)=0,"",I151) -> 21000 | AE151: =IF(COUNT(AE152:AE158)=0,"",J151) -> 3000 | AF151: =IF(COUNT(AF152:AF158)=0,"",K151) ->  | AG151: =IF(COUNT(AG152:AG158)=0,"",L151) ->  | AH151: =IF(COUNT(AC151:AG151)=0,"",M151) -> 30000
C152: DO NOT DELETE LINE
B153: GR 02.04.01 Une page Web du projet est développée. | C153: Consultant externe | D153: 531515_OTHER_INDIVIDUAL_CONTR | E153: par jour | F153: 300 | G153: 100 | H153: =20*F153 -> 6000 | I153: =70*F153 -> 21000 | J153: =10*F153 -> 3000 | M153: 30000 | V153: =H153-O153 -> 6000 | W153: =I153-P153 -> 21000 | X153: =J153-Q153 -> 3000 | Y153: =K153-R153 -> 0 | Z153: 0 | AA153: =SUM(V153:Z153) -> 30000 | AC153: =IF(H153=O153,"",IF(H153>O153,H153,-H153)) -> 6000 | AD153: =IF(I153=P153,"",IF(I153>P153,I153,-I153)) -> 21000 | AE153: =IF(J153=Q153,"",IF(J153>Q153,J153,-J153)) -> 3000 | AF153: =IF(K153=R153,"",IF(K153>R153,K153,-K153)) ->  | AH153: 30000
M154: 0 | V154: 0 | W154: 0 | X154: 0 | Y154: 0 | Z154: 0 | AA154: 0
M155: 0 | V155: 0 | W155: 0 | X155: 0 | Y155: 0 | Z155: 0 | AA155: 0
B156: GR 02.04.02 : L'outil de mesure des résultats est mis en place dans les deux pays au travers des formations et un appui par SOCPRO. | C156: Appui donné par l'équipe de projet | M156: 0 | V156: 0 | W156: 0 | X156: 0 | Y156: 0 | Z156: 0 | AA156: 0
M157: 0 | V157: 0 | W157: 0 | X157: 0 | Y157: 0 | Z157: 0 | AA157: 0
M158: 0 | V158: 0 | W158: 0 | X158: 0 | Y158: 0 | Z158: 0 | AA158: 0
A159: DO NOT DELETE
A160: BF 02 Résultat 2 au Burkina Faso. Les capacités des acteurs techniques et institutionnels sont renforcées et ces acteurs disposent des compétences et des moyens pour démarrer l'opérationnalisation de la CNAMU (système d'information, cadre conventionnel avec les mutuelles sociales et autres organisations de proximité, entre autres). | H160: =SUM(H161:H195)/2 -> 16500 | I160: =SUM(I161:I195)/2 -> 166500 | J160: =SUM(J161:J195)/2 -> 4500 | K160: =SUM(K161:K195)/2 -> 0 | L160: =SUM(L161:L195)/2 -> 0 | M160: =SUM(H160:L160) -> 187500 | V160: =SUM(V161:V195)/2 -> 16500 | W160: =SUM(W161:W195)/2 -> 166500 | X160: =SUM(X161:X195)/2 -> 4500 | Y160: =SUM(Y161:Y195)/2 -> 0 | Z160: =SUM(Z161:Z195)/2 -> 0 | AA160: =SUM(V160:Z160) -> 187500 | AC160: =H160 -> 16500 | AD160: =I160 -> 166500 | AE160: =J160 -> 4500 | AF160: =K160 -> 0 | AG160: 0 | AH160: =SUM(AC160:AG160) -> 187500
A161: DO NOT DELETE
A162: BF 02.01. Une approche adaptée à l'économie informelle, en partenariat avec le mouvement mutualiste et liée à la stratégie nationale de transition de l’économie informelle vers l’économie formelle (en cours d’élaboration avec l’appui du BIT), et une campagne de communication sont appuyées à travers au moins une mutuelle sociale. | H162: =SUM(H163:H175) -> 7500 | I162: =SUM(I163:I175) -> 73000 | J162: =SUM(J163:J175) -> 0 | K162: =SUM(K163:K175) -> 0 | L162: 0 | M162: =SUM(H162:L162) -> 80500 | V162: =SUM(V163:V175) -> 7500 | W162: =SUM(W163:W175) -> 73000 | X162: =SUM(X163:X175) -> 0 | Y162: =SUM(Y163:Y175) -> 0 | Z162: 0 | AA162: =SUM(V162:Z162) -> 80500 | AC162: =IF(COUNT(AC163:AC175)=0,"",H162) -> 7500 | AD162: =IF(COUNT(AD163:AD175)=0,"",I162) -> 73000 | AE162: =IF(COUNT(AE163:AE175)=0,"",J162) ->  | AF162: =IF(COUNT(AF163:AF175)=0,"",K162) ->  | AH162: =IF(COUNT(AC162:AG162)=0,"",M162) -> 80500
C163: DO NOT DELETE LINE
B164: BF 02.01.01. Identifier un noyau d’organisations professionnelles dynamiques et représentatives et bien implantées dans différents secteurs d’activité ; | C164: Consultant externe | D164: 531515_OTHER_INDIVIDUAL_CONTR | E164: par jour | F164: 250 | G164: 20 | H164: =10*F164 -> 2500 | I164: =10*F164 -> 2500 | M164: 5000 | V164: =H164-O164 -> 2500 | W164: =I164-P164 -> 2500 | X164: =J164-Q164 -> 0 | Y164: =K164-R164 -> 0 | Z164: 0 | AA164: =SUM(V164:Z164) -> 5000 | AC164: =IF(H164=O164,"",IF(H164>O164,H164,-H164)) -> 2500 | AD164: =IF(I164=P164,"",IF(I164>P164,I164,-I164)) -> 2500 | AE164: =IF(J164=Q164,"",IF(J164>Q164,J164,-J164)) ->  | AF164: =IF(K164=R164,"",IF(K164>R164,K164,-K164)) ->  | AH164: =IF(COUNT(AC164:AG164)=0,"",M164) -> 5000
M165: 0 | V165: 0 | W165: 0 | X165: 0 | Y165: 0 | Z165: 0 | AA165: 0
M166: 0 | V166: 0 | W166: 0 | X166: 0 | Y166: 0 | Z166: 0 | AA166: 0
B167: BF 02.01.02 Bâtir en collaboration avec le mouvement mutualiste » une stratégie d’accompagnement pour la mise en place d’une approche adaptée au secteur informel. | C167: Seminaire | D167: 581118_SEMINARS_OTHER | E167: par événement | F167: 15000 | G167: 1 | H167: 5000 | I167: 10000 | M167: 15000 | V167: 5000 | W167: 10000 | X167: 0 | Y167: 0 | Z167: 0 | AA167: =SUM(V167:Z167) -> 15000 | AC167: 5000 | AD167: 10000 | AH167: 15000
M168: 0 | V168: 0 | W168: 0 | X168: 0 | Y168: 0 | Z168: 0 | AA168: 0
M169: 0 | V169: 0 | W169: 0 | X169: 0 | Y169: 0 | Z169: 0 | AA169: =SUM(V169:Z169) -> 0
B170: BF 02.01.03 Bâtir un plan de communication incluant l’ensemble des acteurs de gouvernance, des acteurs techniques et les bénéficiaires ; | C170: Consultant externe | D170: 531515_OTHER_INDIVIDUAL_CONTR | E170: par jour | F170: 350 | G170: 30 | I170: =G170*F170 -> 10500 | M170: 10500 | V170: 0 | W170: 10500 | X170: 0 | Y170: 0 | Z170: 0 | AA170: =SUM(V170:Z170) -> 10500 | AD170: 10500 | AH170: 10500
M171: 0 | V171: 0 | W171: 0 | X171: 0 | Y171: 0 | Z171: 0 | AA171: 0
M172: 0 | V172: 0 | W172: 0 | X172: 0 | Y172: 0 | Z172: 0 | AA172: 0
B173: BF 02.01.04. Appuyer la mise en œuvre d’une campagne de communication adaptée à l’ensemble des acteurs. | C173: Subcontractor | D173: 531115_SUBCONTRACTS_GRL | E173: par événement | F173: 50000 | G173: 1 | I173: =G173*F173 -> 50000 | M173: =SUM(H173:L173) -> 50000 | V173: 0 | W173: 50000 | X173: 0 | Y173: 0 | Z173: 0 | AA173: =SUM(V173:Z173) -> 50000 | AD173: 50000 | AH173: 50000
M174: 0 | V174: 0 | W174: 0 | X174: 0 | Y174: 0 | Z174: 0 | AA174: 0
M175: 0 | V175: 0 | W175: 0 | X175: 0 | Y175: 0 | Z175: 0 | AA175: 0
A176: BF 02.02 Les capacités de la CNAMU ainsi que des tutelles technique et financière sont renforcées afin d’assurer une gouvernance, un suivi et une régulation efficaces du système national d’assurance santé et notamment à travers la mise à disposition d’un système d’information (OpenIMIS) | H176: =SUM(H177:H194) -> 9000 | I176: =SUM(I177:I194) -> 93500 | J176: =SUM(J177:J194) -> 4500 | K176: =SUM(K177:K194) -> 0 | L176: =SUM(L177:L194) -> 0 | M176: =SUM(H176:L176) -> 107000 | V176: =SUM(V177:V194) -> 9000 | W176: =SUM(W177:W194) -> 93500 | X176: =SUM(X177:X194) -> 4500 | Y176: =SUM(Y177:Y194) -> 0 | Z176: =SUM(Z177:Z194) -> 0 | AA176: =SUM(V176:Z176) -> 107000 | AC176: =IF(COUNT(AC177:AC194)=0,"",H176) -> 9000 | AD176: =IF(COUNT(AD177:AD194)=0,"",I176) -> 93500 | AE176: =IF(COUNT(AE177:AE194)=0,"",J176) -> 4500 | AF176: =IF(COUNT(AF177:AF194)=0,"",K176) ->  | AG176: =IF(COUNT(AG177:AG194)=0,"",L176) ->  | AH176: =IF(COUNT(AC176:AG176)=0,"",M176) -> 107000
C177: DO NOT DELETE LINE
B178: BF 02.02.01. Elaborer un cahier des charges du système d’information ; | C178: Consultant externe | D178: 531515_OTHER_INDIVIDUAL_CONTR | E178: par jour | F178: 450 | G178: 30 | H178: =10*F178 -> 4500 | I178: =20*F178 -> 9000 | M178: 13500 | V178: =H178-O178 -> 4500 | W178: =I178-P178 -> 9000 | X178: =J178-Q178 -> 0 | Y178: =K178-R178 -> 0 | Z178: 0 | AA178: =SUM(V178:Z178) -> 13500 | AC178: =IF(H178=O178,"",IF(H178>O178,H178,-H178)) -> 4500 | AD178: =IF(I178=P178,"",IF(I178>P178,I178,-I178)) -> 9000 | AE178: =IF(J178=Q178,"",IF(J178>Q178,J178,-J178)) ->  | AF178: =IF(K178=R178,"",IF(K178>R178,K178,-K178)) ->  | AH178: =IF(COUNT(AC178:AG178)=0,"",M178) -> 13500
M179: 0 | V179: 0 | W179: 0 | X179: 0 | Y179: 0 | Z179: 0 | AA179: 0
M180: 0 | V180: 0 | W180: 0 | X180: 0 | Y180: 0 | Z180: 0 | AA180: 0
B181: BF 02.02.02 Adapter un support existant (OpenIMIS) ; | C181: Consultant externe | D181: 531515_OTHER_INDIVIDUAL_CONTR | E181: par jour | F181: 450 | G181: 70 | H181: =10*F181 -> 4500 | I181: =60*F181 -> 27000 | M181: 31500 | V181: 4500 | W181: 27000 | X181: 0 | Y181: 0 | Z181: 0 | AA181: =SUM(V181:Z181) -> 31500 | AC181: 4500 | AD181: 27000 | AH181: 31500
M182: 0 | V182: 0 | W182: 0 | X182: 0 | Y182: 0 | Z182: 0 | AA182: 0
M183: 0 | V183: 0 | W183: 0 | X183: 0 | Y183: 0 | Z183: 0 | AA183: =SUM(V183:Z183) -> 0
B184: BF 02.02.03 Accompagner le déploiement du système d’information. | C184: Consultant externe | D184: 531115_SUBCONTRACTS_GRL | E184: par jour | F184: 450 | G184: 60 | I184: =50*F184 -> 22500 | J184: =10*F184 -> 4500 | M184: 27000 | V184: 0 | W184: 22500 | X184: 4500 | Y184: 0 | Z184: 0 | AA184: =SUM(V184:Z184) -> 27000 | AD184: 22500 | AE184: 4500 | AH184: 27000
M185: 0 | V185: 0 | W185: 0 | X185: 0 | Y185: 0 | Z185: 0 | AA185: 0
M186: 0 | V186: 0 | W186: 0 | X186: 0 | Y186: 0 | Z186: 0 | AA186: 0
B187: BF 02.02.04 Organiser des sessions spécifiques de formation sur la gouvernance du système d’assurance santé y compris la prise en compte des risques liés à la récession économique due au COVID-19, au contexte sécuritaire, au changement climatique, parmi d’autres défis; | C187: Seminaire | D187: 581118_SEMINARS_OTHER | E187: par événement | F187: 20000 | G187: 1 | I187: =F187*G187 -> 20000 | M187: =SUM(H187:L187) -> 20000 | V187: =H187-O187 -> 0 | W187: 20000 | X187: 0 | Y187: 0 | Z187: 0 | AA187: =SUM(V187:Z187) -> 20000 | AC187: =IF(H187=O187,"",IF(H187>O187,H187,-H187)) ->  | AD187: 20000 | AH187: =IF(COUNT(AC187:AG187)=0,"",M187) -> 20000
M188: =SUM(H188:L188) -> 0 | V188: =H188-O188 -> 0 | W188: 0 | X188: 0 | Y188: 0 | Z188: 0 | AA188: =SUM(V188:Z188) -> 0 | AC188: =IF(H188=O188,"",IF(H188>O188,H188,-H188)) ->  | AH188: =IF(COUNT(AC188:AG188)=0,"",M188) -> 
M189: =SUM(H189:L189) -> 0 | V189: =H189-O189 -> 0 | W189: 0 | X189: 0 | Y189: 0 | Z189: 0 | AA189: =SUM(V189:Z189) -> 0 | AC189: =IF(H189=O189,"",IF(H189>O189,H189,-H189)) ->  | AH189: =IF(COUNT(AC189:AG189)=0,"",M189) -> 
B190: BF 02.02.05 Intégrer le Burkina Faso dans un réseau d’échange et de partage d'expérience entre pays sur l’extension de la protection sociale dans des contextes difficiles tels que les crises sécuritaires et humanitaires, le changement climatique. | C190: Seminaire | D190: 581118_SEMINARS_OTHER | E190: par événement | F190: 15000 | G190: 1 | I190: =G190*F190 -> 15000 | M190: 15000 | V190: 0 | W190: 15000 | X190: 0 | Y190: 0 | Z190: 0 | AA190: =SUM(V190:Z190) -> 15000 | AD190: 15000 | AH190: 15000
M191: 0 | V191: 0 | W191: 0 | X191: 0 | Y191: 0 | Z191: 0 | AA191: 0
M192: =SUM(H192:L192) -> 0 | V192: =H192-O192 -> 0 | W192: 0 | X192: 0 | Y192: 0 | Z192: 0 | AA192: =SUM(V192:Z192) -> 0 | AC192: =IF(H192=O192,"",IF(H192>O192,H192,-H192)) ->  | AH192: =IF(COUNT(AC192:AG192)=0,"",M192) -> 
M193: =SUM(H193:L193) -> 0 | V193: =H193-O193 -> 0 | W193: 0 | X193: 0 | Y193: 0 | Z193: 0 | AA193: =SUM(V193:Z193) -> 0 | AC193: =IF(H193=O193,"",IF(H193>O193,H193,-H193)) ->  | AH193: =IF(COUNT(AC193:AG193)=0,"",M193) -> 
M194: =SUM(H194:L194) -> 0 | V194: =H194-O194 -> 0 | W194: 0 | X194: 0 | Y194: 0 | Z194: 0 | AA194: =SUM(V194:Z194) -> 0 | AC194: =IF(H194=O194,"",IF(H194>O194,H194,-H194)) ->  | AH194: =IF(COUNT(AC194:AG194)=0,"",M194) -> 
A195: DO NOT DELETE
A196: SN 02 Résultat 2 au Sénégal. Les capacités des acteurs techniques et de gouvernance sont renforcées et les acteurs disposent des compétences et des moyens pour entamer le déploiement de la branche santé du régime simplifié avec notamment la mise en place du cadre institutionnel pour travailler avec les organisations professionnelles (communication et marketing social, délégations de certaines fonctions de gestion, entre autres). | H196: =SUM(H197:H237)/2 -> 46000 | I196: =SUM(I197:I237)/2 -> 124000 | J196: 30000 | K196: 0 | L196: 0 | M196: =SUM(H196:L196) -> 200000 | V196: =SUM(V197:V237)/2 -> 46000 | W196: =SUM(W197:W237)/2 -> 124000 | X196: =SUM(X197:X237)/2 -> 30000 | Y196: =SUM(Y197:Y238)/2 -> 0 | Z196: =SUM(Z197:Z238)/2 -> 0 | AA196: =SUM(V196:Z196) -> 200000 | AC196: =H196 -> 46000 | AD196: =I196 -> 124000 | AE196: =J196 -> 30000 | AF196: =K196 -> 0 | AG196: =L196 -> 0 | AH196: =SUM(AC196:AG196) -> 200000
A197: DO NOT DELETE
A198: SN 02.01. La branche santé du régime simplifié dispose d’un système d’information de gestion interopérable ou compatible avec la plateforme Oracle en développement entre la CSS et l'IPRES, et d’un tableau de bord des indicateurs clés de l'assurance sociale permettant le suivi continu et l’évaluation périodique des performances. | H198: =SUM(H199:H220) -> 38000 | I198: =SUM(I199:I220) -> 52000 | J198: 0 | K198: 0 | L198: 0 | M198: =SUM(H198:L198) -> 90000 | V198: =SUM(V199:V220) -> 38000 | W198: =SUM(W199:W220) -> 52000 | X198: 0 | Y198: 0 | Z198: 0 | AA198: =SUM(V198:Z198) -> 90000 | AC198: =IF(COUNT(AC199:AC220)=0,"",H198) -> 38000 | AD198: =IF(COUNT(AD199:AD220)=0,"",I198) -> 52000 | AF198: =IF(COUNT(AF199:AF220)=0,"",K198) ->  | AG198: =IF(COUNT(AG199:AG220)=0,"",L198) ->  | AH198: =IF(COUNT(AC198:AG198)=0,"",M198) -> 90000
C199: DO NOT DELETE LINE
B200: SN 02.01.01 :Organiser un atelier de lancement et des rencontres départementales élargies avec les différentes organisations professionnelles (OP) retenues dans la phase pilote. | M200: =SUM(H200:L200) -> 0 | V200: =H200-O200 -> 0 | W200: =I200-P200 -> 0 | X200: 0 | Y200: 0 | Z200: 0 | AA200: =SUM(V200:Z200) -> 0 | AC200: =IF(H200=O200,"",IF(H200>O200,H200,-H200)) ->  | AD200: =IF(I200=P200,"",IF(I200>P200,I200,-I200)) ->  | AH200: =IF(COUNT(AC200:AG200)=0,"",M200) -> 
C201: Atelier | D201: 581118_SEMINARS_OTHER | E201: Par événement | F201: 5000 | G201: 1 | H201: 5000 | M201: 5000 | V201: 5000 | W201: 0 | X201: 0 | Y201: 0 | Z201: 0 | AA201: 5000 | AC201: 5000 | AH201: 5000
... 113 more rows

Sheet Budget Template (2)
A1: Award No. | B1: 502###
A2: PSC Rate | B2: =VLOOKUP(B308,'BL & PSC Rates'!A$2:C$7,2,FALSE) -> 0.13
A3: Project Number | B3: 107###
A4: XB Symbol | B4: GLO/20/29/BEL
A5: Budget Version | B5: V.01.00
H6: Working (Draft) Budget | O6: Current/Baselined Budget | V6: Comparison (Working Budget - Current/Baselined Budget) | AC6: Budget to be entered in OGA
A7: Task Number | H7: 2020 | I7: =H7+1 -> 2021 | J7: =I7+1 -> 2022 | K7: 2023 | L7: 2024 | M7: Total | O7: =H7 -> 2020 | P7: =I7 -> 2021 | Q7: =J7 -> 2022 | R7: =K7 -> 2023 | S7: 2024 | T7: Total | V7: =O7 -> 2020 | W7: =P7 -> 2021 | X7: 2022 | Y7: 2023 | Z7: 2024 | AA7: Total | AC7: =V7 -> 2020 | AD7: =W7 -> 2021 | AE7: 2022 | AF7: 2023 | AG7: 2024 | AH7: Total
A8: Total Project Level | H8: =SUM(H9:H17) -> 379151.9588 | I8: =SUM(I9:I17) -> 1313744.956 | J8: =SUM(J9:J17) -> 287103.0791 | K8: =SUM(K9:K17) -> 0 | L8: =SUM(L9:L17) -> 0 | M8: =ROUNDUP(SUM(H8:L8),0) -> 1980000 | O8: =SUM(O9:O17) -> 0 | P8: =SUM(P9:P17) -> 0 | Q8: =SUM(Q9:Q17) -> 0 | R8: =SUM(R9:R17) -> 0 | S8: =SUM(S9:S17) -> 0 | T8: =SUM(O8:S8) -> 0 | V8: =SUM(V9:V17) -> 430854.5 | W8: =SUM(W9:W17) -> 1540092 | X8: =SUM(X9:X17) -> 279053.5 | Y8: =SUM(Y9:Y17) -> 0 | Z8: =SUM(Z9:Z17) -> 0 | AA8: =SUM(V8:Z8) -> 2250000 | AC8: =SUM(AC9:AC17) -> 430854.5 | AD8: =SUM(AD9:AD17) -> 1540092 | AE8: =SUM(AE9:AE17) -> 279053.5 | AF8: =SUM(AF9:AF17) -> 0 | AG8: =SUM(AG9:AG17) -> 0 | AH8: =SUM(AC8:AG8) -> 2250000
A9: =A22 -> GR 01: Résultat 1 au niveau global et régional: - Les partenariats entre l’OIT et les acteurs régionaux (CIPRES, UEMOA) sont renforcés et les institutions régionales ont les capacités de soutenir leurs membres dans le renforcement de systèmes de protection sociale et de couverture santé qui soient durables, résistants aux chocs sécuritaires, sanitaires et climatiques, et inclusifs notamment des travailleurs de l'économie informelle. | H9: ='Budget Template'!H9/'Budget Template'!$C$312 -> 6599.999979 | I9: ='Budget Template'!I9/'Budget Template'!$C$312 -> 39599.99987 | J9: ='Budget Template'!J9/'Budget Template'!$C$312 -> 2199.999993 | K9: =K22 -> 0 | L9: 0 | M9: =SUM(H9:L9) -> 48399.99985 | O9: =O22 -> 0 | P9: =P22 -> 0 | Q9: 0 | R9: 0 | S9: 0 | T9: 0 | V9: =V22 -> 7500 | W9: 45000 | X9: 2500 | Y9: 0 | Z9: 0 | AA9: =SUM(V9:Z9) -> 55000 | AC9: =AC22 -> 7500 | AD9: 45000 | AE9: 2500 | AF9: 0 | AG9: 0 | AH9: =SUM(AC9:AG9) -> 55000
A10: =A48 -> BF 01: Résultat 1 Burkina Faso. - Les parties prenantes disposent des informations nécessaires et de capacités renforcées pour déterminer et valider l’architecture et les paramètres du régime d’assurance maladie universelle. | H10: ='Budget Template'!H10/'Budget Template'!$C$312 -> 48135.99985 | I10: ='Budget Template'!I10/'Budget Template'!$C$312 -> 53063.99983 | J10: ='Budget Template'!J10/'Budget Template'!$C$312 -> 4399.999986 | K10: =K48 -> 0 | L10: 0 | M10: 105599.9997 | O10: =O48 -> 0 | P10: =P48 -> 0 | Q10: 0 | R10: 0 | S10: 0 | T10: 0 | V10: =V48 -> 54700 | W10: 60300 | X10: 5000 | Y10: 0 | Z10: 0 | AA10: =SUM(V10:Z10) -> 120000 | AC10: =AC48 -> 54700 | AD10: 60300 | AE10: 5000 | AF10: 0 | AG10: 0 | AH10: =SUM(AC10:AG10) -> 120000
A11: =A82 -> SN 01: Résultat 1 Sénégal. - Les parties prenantes disposent des informations nécessaires et de capacités renforcées pour consolider les arrangements juridiques et institutionnels de la branche santé du régime simplifié, notamment son articulation avec l'assurance maladie universelle, et pour faciliter un passage à l’échelle. | H11: ='Budget Template'!H11/'Budget Template'!$C$312 -> 57639.99982 | I11: ='Budget Template'!I11/'Budget Template'!$C$312 -> 48399.99985 | J11: ='Budget Template'!J11/'Budget Template'!$C$312 -> 10559.99997 | K11: =K82 -> 0 | L11: 0 | M11: 116599.9996 | O11: =O82 -> 0 | P11: =P82 -> 0 | Q11: 0 | R11: 0 | S11: 0 | T11: 0 | V11: =V82 -> 65500 | W11: =W82 -> 55000 | X11: 12000 | Y11: 0 | Z11: 0 | AA11: 132500 | AC11: =AC82 -> 65500 | AD11: =AD82 -> 55000 | AE11: 12000 | AF11: 0 | AG11: 0 | AH11: 132500
A12: =A119 -> GR 02: Résultat 2 Niveau global et régional. - L’OIT facilite le déploiement des systèmes de protection sociale par le développement d’outils de formation et de connaissance, par la mise à disposition d’une assistance technique cadrée sur les besoins et par un partage de connaissances et d’expériences au niveau régional et global propice à déclencher des effets multiplicateurs dans d’autres pays africains. | H12: ='Budget Template'!H12/'Budget Template'!$C$312 -> 29039.99991 | I12: ='Budget Template'!I12/'Budget Template'!$C$312 -> 127599.9996 | J12: ='Budget Template'!J12/'Budget Template'!$C$312 -> 8799.999972 | K12: =K119 -> 0 | L12: 0 | M12: 165439.9995 | O12: =O119 -> 0 | P12: =P119 -> 0 | Q12: 0 | R12: 0 | S12: 0 | T12: 0 | V12: =V119 -> 33000 | W12: =W119 -> 145000 | X12: 10000 | Y12: 0 | Z12: 0 | AA12: 188000 | AC12: =AC119 -> 33000 | AD12: =AD119 -> 145000 | AE12: 10000 | AF12: 0 | AG12: 0 | AH12: 188000
A13: =A160 -> BF 02 Résultat 2 au Burkina Faso. Les capacités des acteurs techniques et institutionnels sont renforcées et ces acteurs disposent des compétences et des moyens pour démarrer l'opérationnalisation de la CNAMU (système d'information, cadre conventionnel avec les mutuelles sociales et autres organisations de proximité, entre autres). | H13: ='Budget Template'!H13/'Budget Template'!$C$312 -> 14519.99995 | I13: ='Budget Template'!I13/'Budget Template'!$C$312 -> 146519.9995 | J13: ='Budget Template'!J13/'Budget Template'!$C$312 -> 3959.999987 | K13: =K160 -> 0 | L13: 0 | M13: 164999.9995 | O13: =O160 -> 0 | P13: =P160 -> 0 | Q13: 0 | R13: 0 | S13: 0 | T13: 0 | V13: =V160 -> 16500 | W13: =W160 -> 166500 | X13: 4500 | Y13: 0 | Z13: 0 | AA13: 187500 | AC13: =AC160 -> 16500 | AD13: =AD160 -> 166500 | AE13: 4500 | AF13: 0 | AG13: 0 | AH13: 187500
A14: =A196 -> SN 02 Résultat 2 au Sénégal. Les capacités des acteurs techniques et de gouvernance sont renforcées et les acteurs disposent des compétences et des moyens pour entamer le déploiement de la branche santé du régime simplifié avec notamment la mise en place du cadre institutionnel pour travailler avec les organisations professionnelles (communication et marketing social, délégations de certaines fonctions de gestion, entre autres). | B14: =B196 -> 0 | C14: 0 | D14: 0 | E14: 0 | H14: ='Budget Template'!H14/'Budget Template'!$C$312 -> 40479.99987 | I14: ='Budget Template'!I14/'Budget Template'!$C$312 -> 109119.9997 | J14: ='Budget Template'!J14/'Budget Template'!$C$312 -> 26399.99992 | K14: 0 | L14: 0 | M14: 200000 | N14: 0 | O14: 0 | P14: 0 | Q14: 0 | R14: 0 | S14: 0 | T14: 0 | U14: 0 | V14: 46000 | W14: 124000 | X14: 30000 | Y14: 0 | Z14: 0 | AA14: 200000 | AB14: 0 | AC14: 46000 | AD14: 124000 | AE14: 30000 | AF14: 0 | AG14: 0 | AH14: 200000
A15: =A238 -> 03: Project Management & Oversight | H15: ='Budget Template'!H15/'Budget Template'!$C$312 -> 139116.1196 | I15: ='Budget Template'!I15/'Budget Template'!$C$312 -> 593662.0781 | J15: ='Budget Template'!J15/'Budget Template'!$C$312 -> 188105.7194 | K15: =K238 -> 0 | L15: 0 | M15: 920883.9171 | O15: =O238 -> 0 | P15: =P238 -> 0 | Q15: 0 | R15: 0 | S15: 0 | T15: 0 | V15: =V238 -> 158086.5 | W15: =W238 -> 714616 | X15: 173756.5 | Y15: 0 | Z15: 0 | AA15: 1046459 | AC15: =AC238 -> 158086.5 | AD15: =AD238 -> 714616 | AE15: 173756.5 | AF15: 0 | AG15: 0 | AH15: 1046459
A16: =A305 -> 99: Programme Support Costs and Provision for Cost Increase | H16: ='Budget Template'!H16/'Budget Template'!$C$312 -> 43619.83986 | I16: ='Budget Template'!I16/'Budget Template'!$C$312 -> 195778.8794 | J16: ='Budget Template'!J16/'Budget Template'!$C$312 -> 42677.35986 | K16: =K305 -> 0 | L16: 0 | M16: 282076.0791 | O16: =O305 -> 0 | P16: =P305 -> 0 | Q16: 0 | R16: 0 | S16: 0 | T16: 0 | V16: =V305 -> 49568 | W16: 229676 | X16: 41297 | Y16: 0 | Z16: 0 | AA16: 320541 | AC16: =AC305 -> 49568 | AD16: 229676 | AE16: 41297 | AF16: 0 | AG16: 0 | AH16: 320541
M17: 0 | T17: 0 | AA17: 0 | AH17: 0
A18: Total Project Level | H18: =H22+H48+H82+H119+H160+H196+H238+H305 -> 430854.5 | I18: =I22+I48+I82+I119+I160+I196+I238+I305 -> 1540092 | J18: 279053.5 | K18: 0 | L18: 0 | M18: =SUM(H18:L18) -> 2250000 | O18: =O22+O48+O82+O119+O160+O238+O305 -> 0 | P18: =P22+P48+P82+P119+P160+P238+P305 -> 0 | Q18: =Q22+Q48+Q82+Q119+Q160+Q238+Q305 -> 0 | R18: =R22+R48+R82+R119+R160+R238+R305 -> 0 | S18: =S22+S48+S82+S119+S160+S238+S305 -> 0 | T18: =SUM(O18:S18) -> 0 | V18: =V22+V48+V82+V119+V160+V238+V305 -> 384854.5 | W18: =W22+W48+W82+W119+W160+W238+W305 -> 1416092 | X18: =X22+X48+X82+X119+X160+X238+X305 -> 249053.5 | Y18: =Y22+Y48+Y82+Y119+Y160+Y238+Y305 -> 0 | Z18: =Z22+Z48+Z82+Z119+Z160+Z238+Z305 -> 0 | AA18: =AA22+AA48+AA82+AA119+AA160+AA196+AA238+AA305 -> 2250000 | AB18: =AB22+AB82+AB119+AB160+AB305 -> 0 | AC18: =AC22+AC48+AC82+AC119+AC160+AC238+AC305 -> 384854.5 | AD18: =AD22+AD48+AD82+AD119+AD160+AD238+AD305 -> 1416092 | AE18: =AE22+AE48+AE82+AE119+AE160+AE238+AE305 -> 249053.5 | AF18: =AF22+AF48+AF82+AF119+AF160+AF238+AF305 -> 0 | AG18: 0 | AH18: =AH22+AH48+AH82+AH119+AH160+AH196+AH238+AH305 -> 2250000
A20: Output | B20: Activity | C20: Inputs | D20: Type | E20: Unit rate | G20: Quantity | H20: =H7 -> 2020 | I20: =I7 -> 2021 | J20: =J7 -> 2022 | K20: =K7 -> 2023 | L20: =L7 -> 2024 | M20: Total | O20: =O7 -> 2020 | P20: =P7 -> 2021 | Q20: =Q7 -> 2022 | R20: =R7 -> 2023 | S20: =S7 -> 2024 | T20: Total | V20: =V7 -> 2020 | W20: =W7 -> 2021 | X20: =X7 -> 2022 | Y20: =Y7 -> 2023 | Z20: =Z7 -> 2024 | AA20: Total | AC20: =AC7 -> 2020 | AD20: =AD7 -> 2021 | AE20: =AE7 -> 2022 | AF20: =AF7 -> 2023 | AG20: =AG7 -> 2024 | AH20: Total
C21: (Assumptions) | D21: Resource type* (IRIS)
A22: GR 01: Résultat 1 au niveau global et régional: - Les partenariats entre l’OIT et les acteurs régionaux (CIPRES, UEMOA) sont renforcés et les institutions régionales ont les capacités de soutenir leurs membres dans le renforcement de systèmes de protection sociale et de couverture santé qui soient durables, résistants aux chocs sécuritaires, sanitaires et climatiques, et inclusifs notamment des travailleurs de l'économie informelle. | H22: =SUM(H23:H47)/2 -> 7500 | I22: =SUM(I23:I47)/2 -> 45000 | J22: =SUM(J23:J47)/2 -> 2500 | K22: =SUM(K23:K47)/2 -> 0 | L22: =SUM(L23:L47)/2 -> 0 | M22: =SUM(H22:L22) -> 55000 | V22: =SUM(V23:V47)/2 -> 7500 | W22: =SUM(W23:W47)/2 -> 45000 | X22: =SUM(X23:X47)/2 -> 2500 | Y22: =SUM(Y23:Y47)/2 -> 0 | Z22: =SUM(Z23:Z47)/2 -> 0 | AA22: =SUM(V22:Z22) -> 55000 | AC22: =H22 -> 7500 | AD22: =I22 -> 45000 | AE22: 2500 | AF22: 0 | AG22: 0 | AH22: =SUM(AC22:AG22) -> 55000
A23: DO NOT DELETE
A24: GR 01.01 Le Protocole d’entente entre la CIPRES et l’OIT est mis à jour avec des thématiques et propositions concrètes pour une collaboration renforcée (par exemple extension de la couverture au secteur informel, renforcement de la couverture sanitaire, résilience des systèmes de protection sociale au chocs sécuritaires, sanitaires et climatiques, ...) | H24: =SUM(H25:H31) -> 2500 | I24: =SUM(I25:I31) -> 20000 | J24: =SUM(J25:J31) -> 0 | K24: =SUM(K25:K31) -> 0 | L24: =SUM(L25:L31) -> 0 | M24: =SUM(H24:L24) -> 22500 | V24: =SUM(V25:V31) -> 2500 | W24: =SUM(W25:W31) -> 20000 | X24: =SUM(X25:X31) -> 0 | Y24: =SUM(Y25:Y31) -> 0 | Z24: =SUM(Z25:Z31) -> 0 | AA24: =SUM(V24:Z24) -> 22500 | AC24: =IF(COUNT(AC25:AC31)=0,"",H24) -> 2500 | AD24: =IF(COUNT(AD25:AD31)=0,"",I24) -> 20000 | AE24: =IF(COUNT(AE25:AE31)=0,"",J24) ->  | AF24: =IF(COUNT(AF25:AF31)=0,"",K24) ->  | AG24: =IF(COUNT(AG25:AG31)=0,"",L24) ->  | AH24: =IF(COUNT(AC24:AG24)=0,"",M24) -> 22500
C25: DO NOT DELETE LINE
B26: 01.01.01 Révision du protocole d’entente actuel entre l’OIT et la CIPRES | C26: International consultant | D26: 531515_OTHER_INDIVIDUAL_CONTR | E26: par jour | F26: 250 | G26: 30 | H26: =F26*10 -> 2500 | I26: =F26*20 -> 5000 | M26: 7500 | V26: =H26-O26 -> 2500 | W26: 5000 | X26: 0 | Y26: 0 | Z26: 0 | AA26: 7500 | AC26: =IF(H26=O26,"",IF(H26>O26,H26,-H26)) -> 2500 | AD26: 5000 | AH26: 7500
I27: =F27*G27 -> 0 | M27: 0 | V27: 0 | W27: 0 | X27: 0 | Y27: 0 | Z27: 0 | AA27: =SUM(V27:Z27) -> 0 | AD27: =IF(I27=P27,"",IF(I27>P27,I27,-I27)) ->  | AE27: =IF(J27=Q27,"",IF(J27>Q27,J27,-J27)) -> 
M28: 0 | V28: 0 | W28: 0 | X28: 0 | Y28: 0 | Z28: 0 | AA28: 0
B29: 01.01.02 Organisation de consultations avec les commissaires de la CIPRES en personne et/ou virtuelles. | C29: Atelier | D29: 581118_SEMINARS_OTHER | E29: par seminaire | F29: 15000 | G29: 1 | I29: =F29*G29 -> 15000 | M29: 15000 | V29: 0 | W29: 15000 | X29: 0 | Y29: 0 | Z29: 0 | AA29: 15000 | AD29: 15000 | AH29: 15000
I30: =F30*G30 -> 0 | M30: =SUM(H30:L30) -> 0 | V30: 0 | W30: 0 | X30: 0 | Y30: 0 | Z30: 0 | AA30: 0 | AD30: =IF(I30=P30,"",IF(I30>P30,I30,-I30)) ->  | AE30: =IF(J30=Q30,"",IF(J30>Q30,J30,-J30)) -> 
M31: 0 | V31: 0 | W31: 0 | X31: 0 | Y31: 0 | Z31: 0 | AA31: 0
A32: GR 01.02 Un rapport propose une stratégie d’engagement entre l’OIT et le Conseil du Travail et du Dialogue social de l’UEMOA notamment pour sensibiliser les membres sur l’extension de la couverture au secteur informel. | H32: =SUM(H33:H39) -> 2500 | I32: =SUM(I33:I39) -> 20000 | J32: =SUM(J33:J39) -> 0 | K32: =SUM(K33:K39) -> 0 | L32: =SUM(L33:L39) -> 0 | M32: =SUM(H32:L32) -> 22500 | V32: =SUM(V33:V39) -> 2500 | W32: =SUM(W33:W39) -> 20000 | X32: =SUM(X33:X39) -> 0 | Y32: =SUM(Y33:Y39) -> 0 | Z32: =SUM(Z33:Z39) -> 0 | AA32: =SUM(V32:Z32) -> 22500 | AC32: =IF(COUNT(AC33:AC39)=0,"",H32) -> 2500 | AD32: =IF(COUNT(AD33:AD39)=0,"",I32) -> 20000 | AE32: =IF(COUNT(AE33:AE39)=0,"",J32) ->  | AF32: =IF(COUNT(AF33:AF39)=0,"",K32) ->  | AG32: =IF(COUNT(AG33:AG39)=0,"",L32) ->  | AH32: =IF(COUNT(AC32:AG32)=0,"",M32) -> 22500
C33: DO NOT DELETE LINE
B34: 01.02.01 Revue des cadres d'interventions de l'UEMOA sur les mutuelles et l'extension de la sécurité sociale et préparation de la stratégie d'engagement | C34: International consultant | D34: 531515_OTHER_INDIVIDUAL_CONTR | E34: par jour | F34: 250 | G34: 30 | H34: =10*F34 -> 2500 | I34: =F34*20 -> 5000 | M34: =SUM(H34:L34) -> 7500 | V34: =H34-O34 -> 2500 | W34: 5000 | X34: 0 | Y34: 0 | Z34: 0 | AA34: =SUM(V34:Z34) -> 7500 | AC34: =IF(H34=O34,"",IF(H34>O34,H34,-H34)) -> 2500 | AD34: 5000 | AH34: =IF(COUNT(AC34:AG34)=0,"",M34) -> 7500
M35: 0 | V35: 0 | W35: 0 | X35: 0 | Y35: 0 | Z35: 0 | AA35: =SUM(V35:Z35) -> 0
M36: 0 | V36: 0 | W36: 0 | X36: 0 | Y36: 0 | Z36: 0 | AA36: =SUM(V36:Z36) -> 0
B37: 01.02.02 Organisation d’ateliers de discussion et de validation de la stratégie finale. | C37: Atelier | D37: 581118_SEMINARS_OTHER | E37: par seminaire | F37: 15000 | G37: 1 | I37: =G37*F37 -> 15000 | M37: 15000 | V37: 0 | W37: 15000 | X37: 0 | Y37: 0 | Z37: 0 | AA37: 15000 | AD37: 15000 | AH37: 15000
M38: 0 | V38: 0 | W38: 0 | X38: 0 | Y38: 0 | Z38: 0 | AA38: 0
M39: 0 | V39: 0 | W39: 0 | X39: 0 | Y39: 0 | Z39: 0 | AA39: 0
A40: GR 01.03. L’OIT a renforcé ses appuis techniques auprès de la CIPRES et UEMOA dans le cadre de la préparation de documents stratégiques, la participation aux réunions et conférences de ces deux institutions, entre autres contributions. | H40: =SUM(H41:H47) -> 2500 | I40: =SUM(I41:I47) -> 5000 | J40: =SUM(J41:J47) -> 2500 | K40: =SUM(K41:K47) -> 0 | L40: =SUM(L41:L47) -> 0 | M40: 10000 | V40: =SUM(V41:V47) -> 2500 | W40: =SUM(W41:W47) -> 5000 | X40: =SUM(X41:X47) -> 2500 | Y40: =SUM(Y41:Y47) -> 0 | Z40: =SUM(Z41:Z47) -> 0 | AA40: 10000 | AC40: =IF(COUNT(AC41:AC47)=0,"",H40) -> 2500 | AD40: =IF(COUNT(AD41:AD47)=0,"",I40) -> 5000 | AE40: =IF(COUNT(AE41:AE47)=0,"",J40) -> 2500 | AF40: =IF(COUNT(AF41:AF47)=0,"",K40) ->  | AG40: =IF(COUNT(AG41:AG47)=0,"",L40) ->  | AH40: =IF(COUNT(AC40:AG40)=0,"",M40) -> 10000
C41: DO NOT DELETE LINE
B42: 01.03.01 Appui technique à la préparation des réunions et conférences de la CIPRES et de l'UEMOA, participation et présentations techniques lors de ces rencontres, | C42: Missions | D42: 701100_TRAVEL_PROJECT_STAFF | E42: par mission | F42: 2500 | G42: 4 | H42: =1*F42 -> 2500 | I42: =F42*2 -> 5000 | J42: =1*F42 -> 2500 | M42: 10000 | V42: =H42-O42 -> 2500 | W42: 5000 | X42: 2500 | Y42: 0 | Z42: 0 | AA42: 10000 | AC42: =IF(H42=O42,"",IF(H42>O42,H42,-H42)) -> 2500 | AD42: 5000 | AE42: 2500 | AH42: =IF(COUNT(AC42:AG42)=0,"",M42) -> 10000
M43: 0 | V43: 0 | W43: 0 | X43: 0 | Y43: 0 | Z43: 0 | AA43: =SUM(V43:Z43) -> 0
M44: 0 | V44: 0 | W44: 0 | X44: 0 | Y44: 0 | Z44: 0 | AA44: 0
B45: 01.03.02 Contributions techniques aux documents stratégiques, recommandations, avis, entre autres documents. | C45: Appui donné par l'équipe de projet | I45: =G45*F45 -> 0 | M45: 0 | V45: 0 | W45: 0 | X45: 0 | Y45: 0 | Z45: 0 | AA45: 0
M46: 0 | V46: 0 | W46: 0 | X46: 0 | Y46: 0 | Z46: 0 | AA46: =SUM(V46:Z46) -> 0
M47: 0 | V47: 0 | W47: 0 | X47: 0 | Y47: 0 | Z47: 0 | AA47: 0
A48: BF 01: Résultat 1 Burkina Faso. - Les parties prenantes disposent des informations nécessaires et de capacités renforcées pour déterminer et valider l’architecture et les paramètres du régime d’assurance maladie universelle. | H48: =SUM(H49:H81)/2 -> 54700 | I48: =SUM(I49:I81)/2 -> 60300 | J48: =SUM(J49:J81)/2 -> 5000 | K48: =SUM(K49:K81)/2 -> 0 | L48: =SUM(L49:L81)/2 -> 0 | M48: 120000 | V48: =SUM(V49:V81)/2 -> 54700 | W48: =SUM(W49:W81)/2 -> 60300 | X48: =SUM(X49:X81)/2 -> 5000 | Y48: =SUM(Y49:Y81)/2 -> 0 | Z48: =SUM(Z49:Z81)/2 -> 0 | AA48: 120000 | AC48: =H48 -> 54700 | AD48: =I48 -> 60300 | AE48: 5000 | AF48: 0 | AG48: 0 | AH48: =SUM(AC48:AG48) -> 120000
A49: DO NOT DELETE
A50: BF 01.01. Le paquet de soins de base est adopté comme garantie minimum pour tous, le coût de la provision de ces services à travers le RAMU est estimé et les mécanismes de financement durable sont identifiés. | H50: =SUM(H51:H69) -> 34700 | I50: =SUM(I51:I69) -> 40300 | J50: =SUM(J51:J69) -> 0 | K50: =SUM(K51:K69) -> 0 | L50: =SUM(L51:L69) -> 0 | M50: =SUM(H50:L50) -> 75000 | V50: =SUM(V51:V69) -> 34700 | W50: =SUM(W51:W69) -> 40300 | X50: =SUM(X51:X69) -> 0 | Y50: =SUM(Y51:Y69) -> 0 | Z50: =SUM(Z51:Z69) -> 0 | AA50: =SUM(V50:Z50) -> 75000 | AC50: =IF(COUNT(AC51:AC69)=0,"",H50) -> 34700 | AD50: =IF(COUNT(AD51:AD69)=0,"",I50) -> 40300 | AE50: =IF(COUNT(AE51:AE69)=0,"",J50) ->  | AF50: =IF(COUNT(AF51:AF69)=0,"",K50) ->  | AG50: =IF(COUNT(AG51:AG69)=0,"",L50) ->  | AH50: =IF(COUNT(AC50:AG50)=0,"",M50) -> 75000
C51: DO NOT DELETE LINE
B52: BF 01.01.01 Actualiser les hypothèses de l’étude actuarielle réalisée en 2016 et évaluer le coût du paquet de base et réaliser une simulation financière du RAMU en tenant compte de la nécessité de garantir la résilience du système face aux risques sanitaires, économiques, sécuritaires, humanitaires et liés au changement climatique | C52: Consultant externe international | D52: 531515_OTHER_INDIVIDUAL_CONTR | E52: par jour | F52: 450 | G52: 40 | H52: =40*F52 -> 18000 | M52: =SUM(H52:L52) -> 18000 | V52: =H52-O52 -> 18000 | W52: 0 | X52: 0 | Y52: 0 | Z52: 0 | AA52: =SUM(V52:Z52) -> 18000 | AC52: =IF(H52=O52,"",IF(H52>O52,H52,-H52)) -> 18000 | AH52: =IF(COUNT(AC52:AG52)=0,"",M52) -> 18000
C53: voyage | E53: par vol | F53: 1600 | G53: 1 | H53: =G53*F53 -> 1600 | M53: 1600 | V53: 1600 | W53: 0 | X53: 0 | Y53: 0 | Z53: 0 | AA53: 1600 | AC53: 1600 | AH53: 1600
C54: consultant national | D54: 531515_OTHER_INDIVIDUAL_CONTR | E54: par jour | F54: 250 | G54: 30 | H54: =G54*F54 -> 7500 | M54: 7500 | V54: 7500 | W54: 0 | X54: 0 | Y54: 0 | Z54: 0 | AA54: 7500 | AC54: 7500 | AH54: 7500
C55: frais de mission consultant international | E55: par jour | F55: 260 | G55: 40 | H55: =10*F55 -> 2600 | I55: =30*F55 -> 7800 | M55: 10400 | V55: 2600 | W55: 7800 | X55: 0 | Y55: 0 | Z55: 0 | AA55: 10400 | AC55: 2600 | AD55: 7800 | AH55: 10400
B56: BF 01.01.02 Restituer les résultats de l’actualisation et organiser des sessions de dialogue sur le paquet de soins de base | C56: Réunion | D56: 581118_SEMINARS_OTHER | E56: par événement | F56: 10000 | G56: 1 | I56: =G56*F56 -> 10000 | M56: 10000 | V56: 0 | W56: 10000 | X56: 0 | Y56: 0 | Z56: 0 | AA56: =SUM(V56:Z56) -> 10000 | AD56: 10000 | AH56: 10000
M57: 0 | V57: 0 | W57: 0 | X57: 0 | Y57: 0 | Z57: 0 | AA57: 0
M58: 0 | V58: 0 | W58: 0 | X58: 0 | Y58: 0 | Z58: 0 | AA58: 0
B59: BF 01.01.03 Préparer un support d’aide à la décision pour le CNO-RAMU. | C59: Appui donné par l'équipe de projet | I59: =F59*G59 -> 0 | M59: 0 | V59: 0 | W59: 0 | X59: 0 | Y59: 0 | Z59: 0 | AA59: 0
M60: 0 | V60: 0 | W60: 0 | X60: 0 | Y60: 0 | Z60: 0 | AA60: 0
M61: 0 | V61: 0 | W61: 0 | X61: 0 | Y61: 0 | Z61: 0 | AA61: 0
B62: BF 01.01.04 Organiser et animer des sessions de formation pour l’ensemble des parties prenantes y inclus les organisation de travailleurs et d’employeurs et les organisations professionnelles et de la société civile actives notamment sur les questions de genre et d’inclusion des personnes en situation de handicapdes représentants des personnes concernées; | C62: Session de formation | D62: 581118_SEMINARS_OTHER | H62: 5000 | I62: 10000 | M62: 15000 | V62: 5000 | W62: 10000 | X62: 0 | Y62: 0 | Z62: 0 | AA62: =SUM(V62:Z62) -> 15000 | AC62: 5000 | AD62: 10000 | AH62: 15000
M63: 0 | V63: 0 | W63: 0 | X63: 0 | Y63: 0 | Z63: 0 | AA63: 0
M64: 0 | V64: 0 | W64: 0 | X64: 0 | Y64: 0 | Z64: 0 | AA64: 0
B65: BF 01.01.05 Etudes sur l'impact du changement climatique et autres risques sur les besoins en matière de protection sociale des populations cibles | C65: Consultant externe | D65: 531515_OTHER_INDIVIDUAL_CONTR | E65: par jour | F65: 250 | G65: 30 | I65: =G65*F65 -> 7500 | M65: 7500 | V65: 0 | W65: 7500 | X65: 0 | Y65: 0 | Z65: 0 | AA65: 7500 | AD65: 7500 | AH65: 7500
M66: 0 | V66: 0 | W66: 0 | X66: 0 | Y66: 0 | Z66: 0 | AA66: 0
C67: Atelier de restition | D67: 581118_SEMINARS_OTHER | I67: 5000 | M67: =SUM(H67:L67) -> 5000 | V67: =H67-O67 -> 0 | W67: 5000 | X67: 0 | Y67: 0 | Z67: 0 | AA67: =SUM(V67:Z67) -> 5000 | AC67: =IF(H67=O67,"",IF(H67>O67,H67,-H67)) ->  | AD67: 5000 | AH67: =IF(COUNT(AC67:AG67)=0,"",M67) -> 5000
M68: =SUM(H68:L68) -> 0 | V68: =H68-O68 -> 0 | W68: =I68-P68 -> 0 | X68: 0 | Y68: 0 | Z68: 0 | AA68: =SUM(V68:Z68) -> 0 | AC68: =IF(H68=O68,"",IF(H68>O68,H68,-H68)) ->  | AD68: =IF(I68=P68,"",IF(I68>P68,I68,-I68)) ->  | AH68: =IF(COUNT(AC68:AG68)=0,"",M68) -> 
M69: =SUM(H69:L69) -> 0 | V69: =H69-O69 -> 0 | W69: 0 | X69: 0 | Y69: 0 | Z69: 0 | AA69: =SUM(V69:Z69) -> 0 | AC69: =IF(H69=O69,"",IF(H69>O69,H69,-H69)) ->  | AH69: =IF(COUNT(AC69:AG69)=0,"",M69) -> 
A70: BF 01.02 Le cadre juridique et l’architecture du RAMU sont identifiés et combinent efficacement un organe de prise de décision représentatif des populations couvertes, une gestion centralisée (CNAMU), le mouvement mutualiste et les mécanismes d’assistance. | H70: =SUM(H71:H80) -> 20000 | I70: =SUM(I71:I80) -> 20000 | J70: =SUM(J71:J80) -> 5000 | K70: =SUM(K71:K80) -> 0 | L70: =SUM(L71:L80) -> 0 | M70: 45000 | V70: =SUM(V71:V80) -> 20000 | W70: =SUM(W71:W80) -> 20000 | X70: =SUM(X71:X80) -> 5000 | Y70: =SUM(Y71:Y80) -> 0 | Z70: =SUM(Z71:Z80) -> 0 | AA70: =SUM(V70:Z70) -> 45000 | AC70: =IF(COUNT(AC71:AC80)=0,"",H70) -> 20000 | AD70: =IF(COUNT(AD71:AD80)=0,"",I70) -> 20000 | AE70: =IF(COUNT(AE71:AE80)=0,"",J70) -> 5000 | AF70: =IF(COUNT(AF71:AF80)=0,"",K70) ->  | AG70: =IF(COUNT(AG71:AG80)=0,"",L70) ->  | AH70: =IF(COUNT(AC70:AG70)=0,"",M70) -> 45000
C71: DO NOT DELETE LINE
B72: BF 01.02.01 Réaliser un inventaire des mutuelles sociales avec un mapping des zones d’interventions et des populations cibles ; | C72: Consultant externe | D72: 531515_OTHER_INDIVIDUAL_CONTR | E72: par jour | F72: 250 | G72: 60 | H72: =20*F72 -> 5000 | I72: =40*F72 -> 10000 | M72: 15000 | V72: =H72-O72 -> 5000 | W72: 10000 | X72: 0 | Y72: 0 | Z72: 0 | AA72: =SUM(V72:Z72) -> 15000 | AC72: =IF(H72=O72,"",IF(H72>O72,H72,-H72)) -> 5000 | AD72: 10000 | AH72: 15000
M73: 0 | V73: 0 | W73: 0 | X73: 0 | Y73: 0 | Z73: 0 | AA73: 0
M74: 0 | V74: 0 | W74: 0 | X74: 0 | Y74: 0 | Z74: 0 | AA74: 0
B75: BF 01.02.02 Organiser des sessions de dialogue sur les mécanismes et la répartition des fonctions de gestion technique. | C75: Session de dialogue | D75: 581118_SEMINARS_OTHER | E75: par événement | F75: 15000 | G75: 1 | H75: 5000 | I75: 10000 | M75: 15000 | V75: 5000 | W75: 10000 | X75: 0 | Y75: 0 | Z75: 0 | AA75: =SUM(V75:Z75) -> 15000 | AC75: 5000 | AD75: 10000 | AH75: 15000
M76: 0 | V76: 0 | W76: 0 | X76: 0 | Y76: 0 | Z76: 0 | AA76: 0
M77: 0 | V77: 0 | W77: 0 | X77: 0 | Y77: 0 | Z77: 0 | AA77: 0
B78: BF 01.02.03 Préparer les textes d’application pour la mise en œuvre de la loi n°060-2015/CNT du 05 septembre 2015 portant régime d’assurance maladie universelle (RAMU) au Burkina Faso. | C78: Consultant externe | D78: 531515_OTHER_INDIVIDUAL_CONTR | E78: par jour | F78: 250 | G78: 60 | H78: =40*F78 -> 10000 | J78: 5000 | M78: 15000 | V78: 10000 | W78: 0 | X78: 5000 | Y78: 0 | Z78: 0 | AA78: 15000 | AC78: 10000 | AE78: 5000 | AH78: 15000
M79: 0 | V79: 0 | W79: 0 | X79: 0 | Y79: 0 | Z79: 0 | AA79: 0
M80: 0 | V80: 0 | W80: 0 | X80: 0 | Y80: 0 | Z80: 0 | AA80: 0
A81: DO NOT DELETE
A82: SN 01: Résultat 1 Sénégal. - Les parties prenantes disposent des informations nécessaires et de capacités renforcées pour consolider les arrangements juridiques et institutionnels de la branche santé du régime simplifié, notamment son articulation avec l'assurance maladie universelle, et pour faciliter un passage à l’échelle. | H82: =SUM(H83:H118)/2 -> 65500 | I82: =SUM(I83:I118)/2 -> 55000 | J82: =SUM(J83:J118)/2 -> 12000 | K82: =SUM(K83:K118)/2 -> 0 | L82: =SUM(L83:L118)/2 -> 0 | M82: =SUM(H82:L82) -> 132500 | V82: =SUM(V83:V118)/2 -> 65500 | W82: =SUM(W83:W118)/2 -> 55000 | X82: =SUM(X83:X118)/2 -> 12000 | Y82: =SUM(Y83:Y118)/2 -> 0 | Z82: =SUM(Z83:Z118)/2 -> 0 | AA82: =SUM(V82:Z82) -> 132500 | AC82: =H82 -> 65500 | AD82: =I82 -> 55000 | AE82: =J82 -> 12000 | AF82: =K82 -> 0 | AG82: 0 | AH82: =SUM(AC82:AG82) -> 132500
A83: DO NOT DELETE
A84: SN 01.01 Les paramètres techniques de la branche santé du régime simplifié sont testés et ajustés, et permettent le passage à l’échelle à l'ensemble des travailleurs de l'économie informelle. | H84: =SUM(H85:H100) -> 57500 | I84: =SUM(I85:I100) -> 20000 | J84: =SUM(J85:J100) -> 0 | K84: =SUM(K85:K100) -> 0 | L84: 0 | M84: =SUM(H84:L84) -> 77500 | V84: =SUM(V85:V100) -> 57500 | W84: 20000 | X84: 0 | Y84: 0 | Z84: 0 | AA84: =SUM(V84:Z84) -> 77500 | AC84: =IF(COUNT(AC85:AC100)=0,"",H84) -> 57500 | AD84: =IF(COUNT(AD85:AD100)=0,"",I84) -> 20000 | AH84: =IF(COUNT(AC84:AG84)=0,"",M84) -> 77500
C85: DO NOT DELETE LINE
B86: SN 01.01.01 : Révision des dernières études de tarification et d’articulation en la branche santé du régime simplifié et la CMU et fixation des paramètres de démarrage du pilote et les modalités d’engagement des subventions de l’Etat et fixer le cadre budgétaire et réglementaire du financement de la branche santé du régime simplifié. | M86: =SUM(H86:L86) -> 0 | V86: =H86-O86 -> 0 | W86: 0 | X86: 0 | Y86: 0 | Z86: 0 | AA86: =SUM(V86:Z86) -> 0 | AC86: =IF(H86=O86,"",IF(H86>O86,H86,-H86)) ->  | AH86: =IF(COUNT(AC86:AG86)=0,"",M86) -> 
C87: Consultant | D87: 514170_NAT_CONSULTANTS | E87: par jour | F87: 250 | G87: 70 | H87: =F87*G87 -> 17500 | M87: 17500 | V87: 17500 | W87: 0 | X87: 0 | Y87: 0 | Z87: 0 | AA87: 17500 | AC87: 17500 | AH87: 17500
M88: 0 | V88: 0 | W88: 0 | X88: 0 | Y88: 0 | Z88: 0 | AA88: 0
B89: SN 01.01.02 : Mener une exploration rapide et des discussions pour arrêter définitivement les secteurs d’amorçage qui seront retenus en fonction des travaux déjà réalisés et du niveau d’organisation (artisanat, commerce, transformation agroalimentaire, etc.). | M89: 0 | V89: 0 | W89: 0 | X89: 0 | Y89: 0 | Z89: 0 | AA89: 0
C90: Consultant | D90: 514170_NAT_CONSULTANTS | E90: par jour | F90: 250 | G90: 28 | H90: =F90*G90 -> 7000 | M90: 7000 | V90: 7000 | W90: 0 | X90: 0 | Y90: 0 | Z90: 0 | AA90: 7000 | AC90: 7000 | AH90: 7000
C91: Atelier | D91: 581118_SEMINARS_OTHER | E91: par événement | F91: 3000 | G91: 1 | H91: =F91*G91 -> 3000 | M91: 3000 | V91: 3000 | W91: 0 | X91: 0 | Y91: 0 | Z91: 0 | AA91: 3000 | AC91: 3000 | AH91: 3000
B92: SN 01.01.03 : Elaborer la partie règlementaire et institutionnelle devant permettre le démarrage à titre pilote de la branche santé du régime simplifié. | M92: 0 | V92: 0 | W92: 0 | X92: 0 | Y92: 0 | Z92: 0 | AA92: 0
C93: Consultant | D93: 514170_NAT_CONSULTANTS | E93: par jour | F93: 250 | G93: 45 | H93: =F93*G93 -> 11250 | M93: 11250 | V93: 11250 | W93: 0 | X93: 0 | Y93: 0 | Z93: 0 | AA93: 11250 | AC93: 11250 | AH93: 11250
C94: Atelier | D94: 581118_SEMINARS_OTHER | E94: par evenement | F94: 3750 | G94: 1 | H94: 3750 | M94: 3750 | V94: 3750 | W94: 0 | X94: 0 | Y94: 0 | Z94: 0 | AA94: 3750 | AC94: 3750 | AH94: 3750
B95: SN 01.01.04 : Définir, adopter et mettre en œuvre le schéma financier du régime simplifié, y compris les accords de convention avec les prestataires de soins, les procédures d’affiliation de paiement et de recouvrement des cotisations, de contrôle, de radiation, etc. | M95: =SUM(H95:L95) -> 0 | V95: =H95-O95 -> 0 | W95: 0 | X95: 0 | Y95: 0 | Z95: 0 | AA95: =SUM(V95:Z95) -> 0 | AC95: =IF(H95=O95,"",IF(H95>O95,H95,-H95)) ->  | AH95: =IF(COUNT(AC95:AG95)=0,"",M95) -> 
C96: Consultant | D96: 514170_NAT_CONSULTANTS | E96: par jour | F96: 250 | G96: 60 | H96: =F96*G96 -> 15000 | M96: =SUM(H96:L96) -> 15000 | V96: =H96-O96 -> 15000 | W96: 0 | X96: 0 | Y96: 0 | Z96: 0 | AA96: =SUM(V96:Z96) -> 15000 | AC96: =IF(H96=O96,"",IF(H96>O96,H96,-H96)) -> 15000 | AH96: =IF(COUNT(AC96:AG96)=0,"",M96) -> 15000
M97: =SUM(H97:L97) -> 0 | V97: =H97-O97 -> 0 | W97: 0 | X97: 0 | Y97: 0 | Z97: 0 | AA97: =SUM(V97:Z97) -> 0 | AC97: =IF(H97=O97,"",IF(H97>O97,H97,-H97)) ->  | AH97: =IF(COUNT(AC97:AG97)=0,"",M97) -> 
B98: SN 01.01.05 : Préparer et superviser la capitalisation de la phase pilote de mise en œuvre de la branche santé du régime simplifié pour guider la mise à l’échelle. | M98: 0 | V98: 0 | W98: 0 | X98: 0 | Y98: 0 | Z98: 0 | AA98: 0
C99: consultant | D99: 514170_NAT_CONSULTANTS | E99: par jour | F99: 250 | G99: 60 | I99: 15000 | M99: 15000 | V99: 0 | W99: 15000 | X99: 0 | Y99: =J99-R99 -> 0 | Z99: 0 | AA99: 15000 | AD99: 15000 | AF99: =IF(J99=R99,"",IF(J99>R99,J99,-J99)) ->  | AH99: 15000
C100: Edition | D100: 531115_SUBCONTRACTS_GRL | E100: par évenement | F100: 5000 | G100: 1 | I100: 5000 | M100: 5000 | V100: 0 | W100: 5000 | X100: 0 | Y100: =J100-R100 -> 0 | Z100: 0 | AA100: 5000 | AD100: 5000 | AF100: =IF(J100=R100,"",IF(J100>R100,J100,-J100)) ->  | AH100: 5000
A101: SN 01.02 Les arrangements institutionnels ainsi que les capacités des parties prenantes et des personnels techniques sont renforcées pour une mise en œuvre effective de la branche santé et des propositions d'extension et de conciliations opérationnelles vers d'autres branches du régime simplifié. | H101: =SUM(H102:H117) -> 8000 | I101: =SUM(I102:I117) -> 35000 | J101: 12000 | K101: 0 | L101: 0 | M101: =SUM(H101:L101) -> 55000 | V101: =SUM(V102:V117) -> 8000 | W101: 35000 | X101: 12000 | Y101: 0 | Z101: 0 | AA101: =SUM(V101:Z101) -> 55000 | AC101: =IF(COUNT(AC102:AC117)=0,"",H101) -> 8000 | AD101: =IF(COUNT(AD102:AD117)=0,"",I101) -> 35000 | AE101: 12000 | AH101: =IF(COUNT(AC101:AG101)=0,"",M101) -> 55000
C102: DO NOT DELETE LINE
B103: SN 01.02.01 : Définir les derniers contours et arrangements entre l’ANCMU, l’ICAMO et le ministère du Travail sur l’ancrage de la branche santé du régime simplifié. | M103: =SUM(H103:L103) -> 0 | V103: =H103-O103 -> 0 | W103: 0 | X103: 0 | Y103: 0 | Z103: 0 | AA103: =SUM(V103:Z103) -> 0 | AC103: =IF(H103=O103,"",IF(H103>O103,H103,-H103)) ->  | AH103: =IF(COUNT(AC103:AG103)=0,"",M103) -> 
C104: Séminaire | D104: 581118_SEMINARS_OTHER | E104: par événement | F104: 5500 | G104: 1 | H104: 5500 | M104: 5500 | V104: 5500 | W104: 0 | X104: 0 | Y104: 0 | Z104: 0 | AA104: 5500 | AC104: 5500 | AH104: 5500
C105: Consultant | D105: 514170_NAT_CONSULTANTS | E105: par jour | F105: 250 | G105: 10 | H105: =F105*G105 -> 2500 | M105: 2500 | V105: 2500 | W105: 0 | X105: 0 | Y105: 0 | Z105: 0 | AA105: 2500 | AC105: 2500 | AH105: 2500
B106: SN 01.02.02 : Elaborer un manuel de procédure et de gestion technique spécifique à la branche santé du régime simplifié. | M106: 0 | V106: 0 | W106: 0 | X106: 0 | Y106: 0 | Z106: 0 | AA106: 0
C107: Consultant | D107: 514170_NAT_CONSULTANTS | E107: par jour | F107: 250 | G107: 60 | I107: 15000 | M107: 15000 | V107: 0 | W107: 15000 | X107: 0 | Y107: 0 | Z107: 0 | AA107: 15000 | AD107: 15000 | AH107: 15000
M108: 0 | V108: 0 | W108: 0 | X108: 0 | Y108: 0 | Z108: 0 | AA108: 0
B109: SN 01.02.03 : Produire les différents supports de gestion (fiche d’adhésion, carte d’assuré, etc.). | M109: =SUM(H109:L109) -> 0 | V109: =H109-O109 -> 0 | W109: 0 | X109: 0 | Y109: 0 | Z109: 0 | AA109: =SUM(V109:Z109) -> 0 | AC109: =IF(H109=O109,"",IF(H109>O109,H109,-H109)) ->  | AH109: =IF(COUNT(AC109:AG109)=0,"",M109) -> 
C110: Edition | D110: 531115_SUBCONTRACTS_GRL | E110: par évenemnt | F110: 20000 | G110: 1 | I110: 20000 | M110: =SUM(H110:L110) -> 20000 | V110: =H110-O110 -> 0 | W110: 20000 | X110: 0 | Y110: 0 | Z110: 0 | AA110: =SUM(V110:Z110) -> 20000 | AC110: =IF(H110=O110,"",IF(H110>O110,H110,-H110)) ->  | AD110: 20000 | AH110: =IF(COUNT(AC110:AG110)=0,"",M110) -> 20000
M111: =SUM(H111:L111) -> 0 | V111: =H111-O111 -> 0 | W111: 0 | X111: 0 | Y111: 0 | Z111: 0 | AA111: =SUM(V111:Z111) -> 0 | AC111: =IF(H111=O111,"",IF(H111>O111,H111,-H111)) ->  | AH111: =IF(COUNT(AC111:AG111)=0,"",M111) -> 
B112: SN 01.02.04 : Mener une étude d’articulation opérationnelle et élaborer un manuel de gestion devant régir la mise en œuvre du guichet unique et l’interdépendance des institutions dans le cadre d’une cotisation sociale unique (ICAMO, CSS, IPRES). | M112: 0 | V112: 0 | W112: 0 | X112: 0 | Y112: 0 | Z112: 0 | AA112: 0
C113: Consultant | D113: 514170_NAT_CONSULTANTS | E113: par jour | F113: 250 | G113: 24 | J113: 6000 | M113: 6000 | V113: 0 | W113: 0 | X113: 6000 | Y113: 0 | Z113: 0 | AA113: 6000 | AE113: 6000 | AH113: 6000
M114: 0 | V114: 0 | W114: 0 | X114: 0 | Y114: 0 | Z114: 0 | AA114: 0
B115: SN 01.02.05 : Mener une cartographie du dispositif infrastructurel (maillage des agences et directions de la CSS et de l’IPRES) et proposer sur la base d’entretiens avec les autorités des trois IPS et la tutelle une forme d’arrangement pour la faisabilité du guichet unique. | M115: 0 | V115: 0 | W115: 0 | X115: 0 | Y115: 0 | Z115: 0 | AA115: 0
C116: Consultant | D116: 514170_NAT_CONSULTANTS | E116: Par jour | F116: 250 | G116: 24 | J116: 6000 | M116: 6000 | V116: 0 | W116: 0 | X116: 6000 | Y116: 0 | Z116: 0 | AA116: 6000 | AE116: 6000 | AH116: 6000
M117: 0 | V117: 0 | W117: 0 | X117: 0 | Y117: 0 | Z117: 0 | AA117: 0
A118: DO NOT DELETE
A119: GR 02: Résultat 2 Niveau global et régional. - L’OIT facilite le déploiement des systèmes de protection sociale par le développement d’outils de formation et de connaissance, par la mise à disposition d’une assistance technique cadrée sur les besoins et par un partage de connaissances et d’expériences au niveau régional et global propice à déclencher des effets multiplicateurs dans d’autres pays africains. | H119: =SUM(H120:H159)/2 -> 33000 | I119: =SUM(I120:I159)/2 -> 145000 | J119: =SUM(J120:J159)/2 -> 10000 | K119: =SUM(K120:K159)/2 -> 0 | L119: =SUM(L120:L159)/2 -> 0 | M119: =SUM(H119:L119) -> 188000 | V119: =SUM(V120:V159)/2 -> 33000 | W119: =SUM(W120:W159)/2 -> 145000 | X119: =SUM(X120:X159)/2 -> 10000 | Y119: =SUM(Y120:Y159)/2 -> 0 | Z119: =SUM(Z120:Z159)/2 -> 0 | AA119: =SUM(V119:Z119) -> 188000 | AC119: =H119 -> 33000 | AD119: =I119 -> 145000 | AE119: 10000 | AF119: 0 | AG119: 0 | AH119: =SUM(AC119:AG119) -> 188000
A120: DO NOT DELETE
A121: GR 02.01. Des modules de partage de connaissance ciblés sur les besoins spécifiques des pays sont développés. Ces produits seront développés en étroite coordination avec d’autres équipes de l’OIT au niveau des pays de l'Afrique de l'Ouest. | H121: =SUM(H122:H128) -> 12000 | I121: =SUM(I122:I128) -> 24000 | J121: =SUM(J122:J128) -> 7000 | K121: =SUM(K122:K128) -> 0 | L121: =SUM(L122:L128) -> 0 | M121: =SUM(H121:L121) -> 43000 | V121: =SUM(V122:V128) -> 12000 | W121: =SUM(W122:W128) -> 24000 | X121: =SUM(X122:X128) -> 7000 | Y121: =SUM(Y122:Y128) -> 0 | Z121: =SUM(Z122:Z128) -> 0 | AA121: =SUM(V121:Z121) -> 43000 | AC121: =IF(COUNT(AC122:AC128)=0,"",H121) -> 12000 | AD121: =IF(COUNT(AD122:AD128)=0,"",I121) -> 24000 | AE121: =IF(COUNT(AE122:AE128)=0,"",J121) -> 7000 | AF121: =IF(COUNT(AF122:AF128)=0,"",K121) ->  | AG121: =IF(COUNT(AG122:AG128)=0,"",L121) ->  | AH121: =IF(COUNT(AC121:AG121)=0,"",M121) -> 43000
C122: DO NOT DELETE LINE
B123: GR 02.01.01 Produire les modules. | C123: Développement de matériel de formation | D123: 531111_RESEARCH | E123: par module | F123: 12000 | G123: 3 | H123: =1*F123 -> 12000 | I123: =2*F123 -> 24000 | M123: 36000 | V123: =H123-O123 -> 12000 | W123: 24000 | X123: 0 | Y123: 0 | Z123: 0 | AA123: =SUM(V123:Z123) -> 36000 | AC123: =IF(H123=O123,"",IF(H123>O123,H123,-H123)) -> 12000 | AD123: 24000 | AH123: =IF(COUNT(AC123:AG123)=0,"",M123) -> 36000
M124: 0 | V124: 0 | W124: 0 | X124: 0 | Y124: 0 | Z124: 0 | AA124: 0
M125: 0 | V125: 0 | W125: 0 | X125: 0 | Y125: 0 | Z125: 0 | AA125: 0
B126: GR 02.01.02 Organiser des sessions de partage de connaissances et de validations des modules. | C126: Réunion en personne ou virtuelle | D126: 581118_SEMINARS_OTHER | E126: par événement | F126: 7000 | G126: 1 | J126: =F126*G126 -> 7000 | M126: =SUM(H126:L126) -> 7000 | V126: 0 | W126: 0 | X126: 7000 | Y126: 0 | Z126: 0 | AA126: =SUM(V126:Z126) -> 7000 | AE126: 7000 | AH126: 7000
M127: 0 | V127: 0 | W127: 0 | X127: 0 | Y127: 0 | Z127: 0 | AA127: 0
M128: 0 | V128: 0 | W128: 0 | X128: 0 | Y128: 0 | Z128: 0 | AA128: 0
A129: GR 02.02. Un MOOC (Massive Online Open Course) sur la protection sociale est développé et lancé pendant la durée du projet ; il vise différents publics cibles dans les deux pays et potentiellement dans un plus grand nombre de pays de la sous-région. | H129: =SUM(H130:H142) -> 0 | I129: =SUM(I130:I142) -> 85000 | J129: 0 | K129: 0 | L129: 0 | M129: =SUM(H129:L129) -> 85000 | V129: =SUM(V130:V142) -> 0 | W129: 85000 | X129: 0 | Y129: 0 | Z129: 0 | AA129: =SUM(V129:Z129) -> 85000 | AC129: =IF(COUNT(AC130:AC142)=0,"",H129) ->  | AD129: =IF(COUNT(AD130:AD142)=0,"",I129) -> 85000 | AH129: =IF(COUNT(AC129:AG129)=0,"",M129) -> 85000
C130: DO NOT DELETE LINE
B131: GR 02.02.01 Coordonner le développement (la majorité sera effectués par l'expert protection sociale) | C131: Appui donné par l'équipe de projet | M131: 0 | V131: =H131-O131 -> 0 | W131: 0 | X131: 0 | Y131: 0 | Z131: 0 | AA131: 0 | AC131: =IF(H131=O131,"",IF(H131>O131,H131,-H131)) ->  | AH131: =IF(COUNT(AC131:AG131)=0,"",M131) -> 
M132: 0 | V132: 0 | W132: 0 | X132: 0 | Y132: 0 | Z132: 0 | AA132: 0
M133: 0 | V133: 0 | W133: 0 | X133: 0 | Y133: 0 | Z133: 0 | AA133: 0
B134: GR 02.02.02 Produire les contenus du MOOC. | C134: Développement de matériel de formation | D134: 531111_RESEARCH | E134: par module | F134: 1 | G134: 18000 | I134: =F134*G134 -> 18000 | M134: 18000 | V134: 0 | W134: 18000 | X134: 0 | Y134: 0 | Z134: 0 | AA134: =SUM(V134:Z134) -> 18000 | AD134: 18000 | AH134: 18000
M135: 0 | V135: 0 | W135: 0 | X135: 0 | Y135: 0 | Z135: 0 | AA135: 0
M136: 0 | V136: 0 | W136: 0 | X136: 0 | Y136: 0 | Z136: 0 | AA136: 0
B137: GR 02.02.03 Produire et éditer les vidéos | C137: Consultant externe | D137: 531515_OTHER_INDIVIDUAL_CONTR | E137: par module | F137: 1 | G137: 25000 | I137: =F137*G137 -> 25000 | M137: 25000 | V137: 0 | W137: 25000 | X137: 0 | Y137: 0 | Z137: 0 | AA137: =SUM(V137:Z137) -> 25000 | AD137: 25000 | AH137: 25000
M138: 0 | V138: 0 | W138: 0 | X138: 0 | Y138: 0 | Z138: 0 | AA138: 0
M139: 0 | V139: 0 | W139: 0 | X139: 0 | Y139: 0 | Z139: 0 | AA139: 0
B140: GR 02.02.04 Mettre en place le MOOC, création et facilitation du cours, marketing du MOOC. | C140: Subcontractor | D140: 531515_OTHER_INDIVIDUAL_CONTR | E140: par MOOC | F140: 1 | G140: 42000 | I140: =1*G140 -> 42000 | M140: 42000 | V140: 0 | W140: 42000 | X140: 0 | Y140: 0 | Z140: 0 | AA140: 42000 | AD140: 42000 | AH140: 42000
M141: 0 | V141: 0 | W141: 0 | X141: 0 | Y141: 0 | Z141: 0 | AA141: 0
M142: 0 | V142: 0 | W142: 0 | X142: 0 | Y142: 0 | Z142: 0 | AA142: 0
A143: GR 02.03 Un appui du hub santé de l’OIT au Burkina Faso et au Sénégal, sur une ou deux thématiques pertinentes dans le cadre de l’extension de la couverture sanitaire dans les deux pays et qui permet de faciliter un échange et des effets multiplicateurs au niveau régional. | H143: =SUM(H144:H150) -> 15000 | I143: =SUM(I144:I150) -> 15000 | J143: =SUM(J144:J150) -> 0 | K143: =SUM(K144:K150) -> 0 | L143: =SUM(L144:L150) -> 0 | M143: 30000 | V143: =SUM(V144:V150) -> 15000 | W143: =SUM(W144:W150) -> 15000 | X143: =SUM(X144:X150) -> 0 | Y143: =SUM(Y144:Y150) -> 0 | Z143: =SUM(Z144:Z150) -> 0 | AA143: 30000 | AC143: =IF(COUNT(AC144:AC150)=0,"",H143) -> 15000 | AD143: =IF(COUNT(AD144:AD150)=0,"",I143) -> 15000 | AE143: =IF(COUNT(AE144:AE150)=0,"",J143) ->  | AF143: =IF(COUNT(AF144:AF150)=0,"",K143) ->  | AG143: =IF(COUNT(AG144:AG150)=0,"",L143) ->  | AH143: =IF(COUNT(AC143:AG143)=0,"",M143) -> 30000
C144: DO NOT DELETE LINE
B145: GR 02.03.01 Partage de connaissances, suggestions d'amélioration, appui conseil | C145: Consultant externe | D145: 531515_OTHER_INDIVIDUAL_CONTR | E145: par thématique | F145: 2 | G145: 15000 | H145: =1*G145 -> 15000 | I145: =1*G145 -> 15000 | M145: 30000 | V145: =H145-O145 -> 15000 | W145: 15000 | X145: 0 | Y145: 0 | Z145: 0 | AA145: =SUM(V145:Z145) -> 30000 | AC145: =IF(H145=O145,"",IF(H145>O145,H145,-H145)) -> 15000 | AD145: 15000 | AH145: 30000
M146: 0 | V146: 0 | W146: 0 | X146: 0 | Y146: 0 | Z146: 0 | AA146: 0
M147: 0 | V147: 0 | W147: 0 | X147: 0 | Y147: 0 | Z147: 0 | AA147: 0
M148: =SUM(H148:L148) -> 0 | V148: 0 | W148: 0 | X148: 0 | Y148: 0 | Z148: 0 | AA148: =SUM(V148:Z148) -> 0
M149: 0 | V149: 0 | W149: 0 | X149: 0 | Y149: 0 | Z149: 0 | AA149: 0
M150: 0 | V150: 0 | W150: 0 | X150: 0 | Y150: 0 | Z150: 0 | AA150: 0
A151: GR 02.04 Une stratégie et des outils de communication et visibilité, de suivi et évaluation du projet sont développés. | H151: =SUM(H152:H158) -> 6000 | I151: =SUM(I152:I158) -> 21000 | J151: =SUM(J152:J158) -> 3000 | K151: =SUM(K152:K158) -> 0 | L151: =SUM(L152:L158) -> 0 | M151: =SUM(H151:L151) -> 30000 | V151: =SUM(V152:V158) -> 6000 | W151: =SUM(W152:W158) -> 21000 | X151: =SUM(X152:X158) -> 3000 | Y151: =SUM(Y152:Y158) -> 0 | Z151: =SUM(Z152:Z158) -> 0 | AA151: 30000 | AC151: =IF(COUNT(AC152:AC158)=0,"",H151) -> 6000 | AD151: =IF(COUNT(AD152:AD158)=0,"",I151) -> 21000 | AE151: =IF(COUNT(AE152:AE158)=0,"",J151) -> 3000 | AF151: =IF(COUNT(AF152:AF158)=0,"",K151) ->  | AG151: =IF(COUNT(AG152:AG158)=0,"",L151) ->  | AH151: =IF(COUNT(AC151:AG151)=0,"",M151) -> 30000
C152: DO NOT DELETE LINE
B153: GR 02.04.01 Une page Web du projet est développée. | C153: Consultant externe | D153: 531515_OTHER_INDIVIDUAL_CONTR | E153: par jour | F153: 300 | G153: 100 | H153: =20*F153 -> 6000 | I153: =70*F153 -> 21000 | J153: =10*F153 -> 3000 | M153: 30000 | V153: =H153-O153 -> 6000 | W153: 21000 | X153: 3000 | Y153: 0 | Z153: 0 | AA153: =SUM(V153:Z153) -> 30000 | AC153: =IF(H153=O153,"",IF(H153>O153,H153,-H153)) -> 6000 | AD153: 21000 | AE153: 3000 | AH153: 30000
M154: 0 | V154: 0 | W154: 0 | X154: 0 | Y154: 0 | Z154: 0 | AA154: 0
M155: 0 | V155: 0 | W155: 0 | X155: 0 | Y155: 0 | Z155: 0 | AA155: 0
B156: GR 02.04.02 : L'outil de mesure des résultats est mis en place dans les deux pays au travers des formations et un appui par SOCPRO. | C156: Appui donné par l'équipe de projet | M156: 0 | V156: 0 | W156: 0 | X156: 0 | Y156: 0 | Z156: 0 | AA156: 0
M157: 0 | V157: 0 | W157: 0 | X157: 0 | Y157: 0 | Z157: 0 | AA157: 0
M158: 0 | V158: 0 | W158: 0 | X158: 0 | Y158: 0 | Z158: 0 | AA158: 0
A159: DO NOT DELETE
A160: BF 02 Résultat 2 au Burkina Faso. Les capacités des acteurs techniques et institutionnels sont renforcées et ces acteurs disposent des compétences et des moyens pour démarrer l'opérationnalisation de la CNAMU (système d'information, cadre conventionnel avec les mutuelles sociales et autres organisations de proximité, entre autres). | H160: =SUM(H161:H195)/2 -> 16500 | I160: =SUM(I161:I195)/2 -> 166500 | J160: =SUM(J161:J195)/2 -> 4500 | K160: =SUM(K161:K195)/2 -> 0 | L160: =SUM(L161:L195)/2 -> 0 | M160: =SUM(H160:L160) -> 187500 | V160: =SUM(V161:V195)/2 -> 16500 | W160: =SUM(W161:W195)/2 -> 166500 | X160: =SUM(X161:X195)/2 -> 4500 | Y160: =SUM(Y161:Y195)/2 -> 0 | Z160: =SUM(Z161:Z195)/2 -> 0 | AA160: =SUM(V160:Z160) -> 187500 | AC160: =H160 -> 16500 | AD160: =I160 -> 166500 | AE160: 4500 | AF160: 0 | AG160: 0 | AH160: =SUM(AC160:AG160) -> 187500
A161: DO NOT DELETE
A162: BF 02.01. Une approche adaptée à l'économie informelle, en partenariat avec le mouvement mutualiste et liée à la stratégie nationale de transition de l’économie informelle vers l’économie formelle (en cours d’élaboration avec l’appui du BIT), et une campagne de communication sont appuyées à travers au moins une mutuelle sociale. | H162: =SUM(H163:H175) -> 7500 | I162: =SUM(I163:I175) -> 73000 | J162: 0 | K162: 0 | L162: 0 | M162: =SUM(H162:L162) -> 80500 | V162: =SUM(V163:V175) -> 7500 | W162: 73000 | X162: 0 | Y162: 0 | Z162: 0 | AA162: =SUM(V162:Z162) -> 80500 | AC162: =IF(COUNT(AC163:AC175)=0,"",H162) -> 7500 | AD162: =IF(COUNT(AD163:AD175)=0,"",I162) -> 73000 | AH162: =IF(COUNT(AC162:AG162)=0,"",M162) -> 80500
C163: DO NOT DELETE LINE
B164: BF 02.01.01. Identifier un noyau d’organisations professionnelles dynamiques et représentatives et bien implantées dans différents secteurs d’activité ; | C164: Consultant externe | D164: 531515_OTHER_INDIVIDUAL_CONTR | E164: par jour | F164: 250 | G164: 20 | H164: =10*F164 -> 2500 | I164: =10*F164 -> 2500 | M164: 5000 | V164: =H164-O164 -> 2500 | W164: 2500 | X164: 0 | Y164: 0 | Z164: 0 | AA164: =SUM(V164:Z164) -> 5000 | AC164: =IF(H164=O164,"",IF(H164>O164,H164,-H164)) -> 2500 | AD164: 2500 | AH164: =IF(COUNT(AC164:AG164)=0,"",M164) -> 5000
M165: 0 | V165: 0 | W165: 0 | X165: 0 | Y165: 0 | Z165: 0 | AA165: 0
M166: 0 | V166: 0 | W166: 0 | X166: 0 | Y166: 0 | Z166: 0 | AA166: 0
B167: BF 02.01.02 Bâtir en collaboration avec le mouvement mutualiste » une stratégie d’accompagnement pour la mise en place d’une approche adaptée au secteur informel. | C167: Seminaire | D167: 581118_SEMINARS_OTHER | E167: par événement | F167: 15000 | G167: 1 | H167: 5000 | I167: 10000 | M167: 15000 | V167: 5000 | W167: 10000 | X167: 0 | Y167: 0 | Z167: 0 | AA167: 15000 | AC167: 5000 | AD167: 10000 | AH167: 15000
M168: 0 | V168: 0 | W168: 0 | X168: 0 | Y168: 0 | Z168: 0 | AA168: 0
M169: 0 | V169: 0 | W169: 0 | X169: 0 | Y169: 0 | Z169: 0 | AA169: =SUM(V169:Z169) -> 0
B170: BF 02.01.03 Bâtir un plan de communication incluant l’ensemble des acteurs de gouvernance, des acteurs techniques et les bénéficiaires ; | C170: Consultant externe | D170: 531515_OTHER_INDIVIDUAL_CONTR | E170: par jour | F170: 350 | G170: 30 | I170: =G170*F170 -> 10500 | M170: 10500 | V170: 0 | W170: 10500 | X170: 0 | Y170: 0 | Z170: 0 | AA170: 10500 | AD170: 10500 | AH170: 10500
M171: 0 | V171: 0 | W171: 0 | X171: 0 | Y171: 0 | Z171: 0 | AA171: 0
M172: 0 | V172: 0 | W172: 0 | X172: 0 | Y172: 0 | Z172: 0 | AA172: 0
B173: BF 02.01.04. Appuyer la mise en œuvre d’une campagne de communication adaptée à l’ensemble des acteurs. | C173: Subcontractor | D173: 531115_SUBCONTRACTS_GRL | E173: par événement | F173: 50000 | G173: 1 | I173: =G173*F173 -> 50000 | M173: 50000 | V173: 0 | W173: 50000 | X173: 0 | Y173: 0 | Z173: 0 | AA173: 50000 | AD173: 50000 | AH173: 50000
M174: 0 | V174: 0 | W174: 0 | X174: 0 | Y174: 0 | Z174: 0 | AA174: 0
M175: 0 | V175: 0 | W175: 0 | X175: 0 | Y175: 0 | Z175: 0 | AA175: 0
A176: BF 02.02 Les capacités de la CNAMU ainsi que des tutelles technique et financière sont renforcées afin d’assurer une gouvernance, un suivi et une régulation efficaces du système national d’assurance santé et notamment à travers la mise à disposition d’un système d’information (OpenIMIS) | H176: =SUM(H177:H194) -> 9000 | I176: =SUM(I177:I194) -> 93500 | J176: =SUM(J177:J194) -> 4500 | K176: =SUM(K177:K194) -> 0 | L176: =SUM(L177:L194) -> 0 | M176: 107000 | V176: =SUM(V177:V194) -> 9000 | W176: =SUM(W177:W194) -> 93500 | X176: =SUM(X177:X194) -> 4500 | Y176: =SUM(Y177:Y194) -> 0 | Z176: =SUM(Z177:Z194) -> 0 | AA176: 107000 | AC176: =IF(COUNT(AC177:AC194)=0,"",H176) -> 9000 | AD176: =IF(COUNT(AD177:AD194)=0,"",I176) -> 93500 | AE176: =IF(COUNT(AE177:AE194)=0,"",J176) -> 4500 | AF176: =IF(COUNT(AF177:AF194)=0,"",K176) ->  | AG176: =IF(COUNT(AG177:AG194)=0,"",L176) ->  | AH176: =IF(COUNT(AC176:AG176)=0,"",M176) -> 107000
C177: DO NOT DELETE LINE
B178: BF 02.02.01. Elaborer un cahier des charges du système d’information ; | C178: Consultant externe | D178: 531515_OTHER_INDIVIDUAL_CONTR | E178: par jour | F178: 450 | G178: 30 | H178: =10*F178 -> 4500 | I178: =20*F178 -> 9000 | M178: 13500 | V178: =H178-O178 -> 4500 | W178: 9000 | X178: 0 | Y178: 0 | Z178: 0 | AA178: =SUM(V178:Z178) -> 13500 | AC178: =IF(H178=O178,"",IF(H178>O178,H178,-H178)) -> 4500 | AD178: 9000 | AH178: =IF(COUNT(AC178:AG178)=0,"",M178) -> 13500
M179: 0 | V179: 0 | W179: 0 | X179: 0 | Y179: 0 | Z179: 0 | AA179: 0
M180: 0 | V180: 0 | W180: 0 | X180: 0 | Y180: 0 | Z180: 0 | AA180: 0
B181: BF 02.02.02 Adapter un support existant (OpenIMIS) ; | C181: Consultant externe | D181: 531515_OTHER_INDIVIDUAL_CONTR | E181: par jour | F181: 450 | G181: 70 | H181: =10*F181 -> 4500 | I181: =60*F181 -> 27000 | M181: 31500 | V181: 4500 | W181: 27000 | X181: 0 | Y181: 0 | Z181: 0 | AA181: 31500 | AC181: 4500 | AD181: 27000 | AH181: 31500
M182: 0 | V182: 0 | W182: 0 | X182: 0 | Y182: 0 | Z182: 0 | AA182: 0
M183: 0 | V183: 0 | W183: 0 | X183: 0 | Y183: 0 | Z183: 0 | AA183: =SUM(V183:Z183) -> 0
B184: BF 02.02.03 Accompagner le déploiement du système d’information. | C184: Consultant externe | D184: 531115_SUBCONTRACTS_GRL | E184: par jour | F184: 450 | G184: 60 | I184: =50*F184 -> 22500 | J184: =10*F184 -> 4500 | M184: 27000 | V184: 0 | W184: 22500 | X184: 4500 | Y184: 0 | Z184: 0 | AA184: 27000 | AD184: 22500 | AE184: 4500 | AH184: 27000
M185: 0 | V185: 0 | W185: 0 | X185: 0 | Y185: 0 | Z185: 0 | AA185: 0
M186: 0 | V186: 0 | W186: 0 | X186: 0 | Y186: 0 | Z186: 0 | AA186: 0
B187: BF 02.02.04 Organiser des sessions spécifiques de formation sur la gouvernance du système d’assurance santé y compris la prise en compte des risques liés à la récession économique due au COVID-19, au contexte sécuritaire, au changement climatique, parmi d’autres défis; | C187: Seminaire | D187: 581118_SEMINARS_OTHER | E187: par événement | F187: 20000 | G187: 1 | I187: =F187*G187 -> 20000 | M187: =SUM(H187:L187) -> 20000 | V187: =H187-O187 -> 0 | W187: 20000 | X187: 0 | Y187: 0 | Z187: 0 | AA187: =SUM(V187:Z187) -> 20000 | AC187: =IF(H187=O187,"",IF(H187>O187,H187,-H187)) ->  | AD187: 20000 | AH187: =IF(COUNT(AC187:AG187)=0,"",M187) -> 20000
M188: =SUM(H188:L188) -> 0 | V188: =H188-O188 -> 0 | W188: 0 | X188: 0 | Y188: 0 | Z188: 0 | AA188: =SUM(V188:Z188) -> 0 | AC188: =IF(H188=O188,"",IF(H188>O188,H188,-H188)) ->  | AH188: =IF(COUNT(AC188:AG188)=0,"",M188) -> 
M189: =SUM(H189:L189) -> 0 | V189: =H189-O189 -> 0 | W189: 0 | X189: 0 | Y189: 0 | Z189: 0 | AA189: =SUM(V189:Z189) -> 0 | AC189: =IF(H189=O189,"",IF(H189>O189,H189,-H189)) ->  | AH189: =IF(COUNT(AC189:AG189)=0,"",M189) -> 
B190: BF 02.02.05 Intégrer le Burkina Faso dans un réseau d’échange et de partage d'expérience entre pays sur l’extension de la protection sociale dans des contextes difficiles tels que les crises sécuritaires et humanitaires, le changement climatique. | C190: Seminaire | D190: 581118_SEMINARS_OTHER | E190: par événement | F190: 15000 | G190: 1 | I190: =G190*F190 -> 15000 | M190: 15000 | V190: 0 | W190: 15000 | X190: 0 | Y190: 0 | Z190: 0 | AA190: =SUM(V190:Z190) -> 15000 | AD190: 15000 | AH190: 15000
M191: 0 | V191: 0 | W191: 0 | X191: 0 | Y191: 0 | Z191: 0 | AA191: 0
M192: =SUM(H192:L192) -> 0 | V192: =H192-O192 -> 0 | W192: 0 | X192: 0 | Y192: 0 | Z192: 0 | AA192: =SUM(V192:Z192) -> 0 | AC192: =IF(H192=O192,"",IF(H192>O192,H192,-H192)) ->  | AH192: =IF(COUNT(AC192:AG192)=0,"",M192) -> 
M193: =SUM(H193:L193) -> 0 | V193: =H193-O193 -> 0 | W193: 0 | X193: 0 | Y193: 0 | Z193: 0 | AA193: =SUM(V193:Z193) -> 0 | AC193: =IF(H193=O193,"",IF(H193>O193,H193,-H193)) ->  | AH193: =IF(COUNT(AC193:AG193)=0,"",M193) -> 
M194: =SUM(H194:L194) -> 0 | V194: =H194-O194 -> 0 | W194: =I194-P194 -> 0 | X194: 0 | Y194: 0 | Z194: 0 | AA194: =SUM(V194:Z194) -> 0 | AC194: =IF(H194=O194,"",IF(H194>O194,H194,-H194)) ->  | AD194: =IF(I194=P194,"",IF(I194>P194,I194,-I194)) ->  | AH194: =IF(COUNT(AC194:AG194)=0,"",M194) -> 
A195: DO NOT DELETE
A196: SN 02 Résultat 2 au Sénégal. Les capacités des acteurs techniques et de gouvernance sont renforcées et les acteurs disposent des compétences et des moyens pour entamer le déploiement de la branche santé du régime simplifié avec notamment la mise en place du cadre institutionnel pour travailler avec les organisations professionnelles (communication et marketing social, délégations de certaines fonctions de gestion, entre autres). | H196: =SUM(H197:H237)/2 -> 46000 | I196: =SUM(I197:I237)/2 -> 124000 | J196: 30000 | K196: 0 | L196: 0 | M196: =SUM(H196:L196) -> 200000 | V196: =SUM(V197:V237)/2 -> 46000 | W196: =SUM(W197:W237)/2 -> 124000 | X196: =SUM(X197:X237)/2 -> 30000 | Y196: =SUM(Y197:Y238)/2 -> 0 | Z196: =SUM(Z197:Z238)/2 -> 0 | AA196: =SUM(V196:Z196) -> 200000 | AC196: =H196 -> 46000 | AD196: =I196 -> 124000 | AE196: 30000 | AF196: 0 | AG196: 0 | AH196: =SUM(AC196:AG196) -> 200000
A197: DO NOT DELETE
A198: SN 02.01. La branche santé du régime simplifié dispose d’un système d’information de gestion interopérable ou compatible avec la plateforme Oracle en développement entre la CSS et l'IPRES, et d’un tableau de bord des indicateurs clés de l'assurance sociale permettant le suivi continu et l’évaluation périodique des performances. | H198: =SUM(H199:H220) -> 38000 | I198: =SUM(I199:I220) -> 52000 | J198: 0 | K198: 0 | L198: 0 | M198: =SUM(H198:L198) -> 90000 | V198: =SUM(V199:V220) -> 38000 | W198: 52000 | X198: 0 | Y198: 0 | Z198: 0 | AA198: =SUM(V198:Z198) -> 90000 | AC198: =IF(COUNT(AC199:AC220)=0,"",H198) -> 38000 | AD198: =IF(COUNT(AD199:AD220)=0,"",I198) -> 52000 | AH198: =IF(COUNT(AC198:AG198)=0,"",M198) -> 90000
C199: DO NOT DELETE LINE
B200: SN 02.01.01 :Organiser un atelier de lancement et des rencontres départementales élargies avec les différentes organisations professionnelles (OP) retenues dans la phase pilote. | M200: =SUM(H200:L200) -> 0 | V200: =H200-O200 -> 0 | W200: 0 | X200: 0 | Y200: 0 | Z200: 0 | AA200: =SUM(V200:Z200) -> 0 | AC200: =IF(H200=O200,"",IF(H200>O200,H200,-H200)) ->  | AH200: =IF(COUNT(AC200:AG200)=0,"",M200) -> 
C201: Atelier | D201: 581118_SEMINARS_OTHER | E201: Par événement | F201: 5000 | G201: 1 | H201: 5000 | M201: 5000 | V201: 5000 | W201: 0 | X201: 0 | Y201: 0 | Z201: 0 | AA201: 5000 | AC201: 5000 | AH201: 5000
... 112 more rows

Sheet BL & PSC Rates
A1: PSC BL | B1: PSC Rate
A2: 068.001 | B2: 0.13 | C2: If a waiver has been requested and approved by the TREASURER, please select a different rate at Outcome 06 (06.01.01. PSC)
A3: 067.001 | B3: Enter approved PSC rate on TAB 'BL & PSC Rates' | C3: Waiver should be obtained before submitting budget to the donor
A4: 065.001 | B4: 0.05 | C4: Waiver should be obtained before submitting budget to the donor
A5: 064.001 | B5: 0.12 | C5: Waiver should be obtained before submitting budget to the donor
A6: 062.001 | B6: 0.07 | C6: Waiver should be obtained before submitting budget to the donor
A7: 061.001 | B7: 0.14 | C7: Waiver should be obtained before submitting budget to the donor

Sheet How to "Add Resource Line"
A2: Select whole row where you need the additional line
A3: Do not select the fist line under the Activity, this to avoid loosing the borders layout
A31: but select a line in the middle or the last row of the Activity
A58: Click the button "Add Resource Line"
Q72: Line added, with all formulas and conditional formatting

Sheet How to "Add New Activity"
A2: Select the whole row where you need the additional activity
A3: Always select the fist line of an Activity, never a line in the middle.
A28: but
A52: Click the button "Add New Activity"
P66: New Activity, incl. 3 Resource Lines, has been created. If more resource lines are required, please follow the 'How to "Add Resource Line"' guidance. The figures for this new activity are automaticaly included in the total of the Output and therefore there is no need to change the formulas of the Output

Sheet How to "Add New Output"
A2: You should always add the additional/new Output under the Outcome where it is required
A3: You shoud select the top line of an existing Output in that Outcome, never select a line in the middle of another Output
AF19: Output wrongly created in the middle of an existing output
A30: but, select the top row of an existing Output
A52: Click the button "Add New Output"
P68: The newly created Output with all the formulas and conditional formatting. This output is automatically included in the Outcome Total and there is no need to change their formulas.

Sheet How to "Delete Line(s)"
A2: Select the line, or lines, that you need to delete.
A3: If a whole Activity or Output needs to be deleted, it is better to select the entire Activity or Output.
A4: CAUTION: You cannot undo this action.
A5: Never delete an Outcome as this will break the PSC formulas
A33: Click the button "Delete Line", CAUTION: You cannot undo this action.
A69: Click the button "Delete Line", CAUTION: You cannot undo this action.
A72: If a resource that currently exists in IRIS is no longer required, do not the lete the line, but instead make the budget USD 0

Sheet ADD_RES_LINE
A2: Output | B2: Activity | C2: Inputs | D2: Type | E2: Unit rate | G2: Quantity | H2: ='Budget Template'!H7 -> 2020 | I2: ='Budget Template'!I7 -> 2021 | J2: ='Budget Template'!J7 -> 2022 | K2: ='Budget Template'!K7 -> 2023 | L2: ='Budget Template'!L7 -> 2024 | M2: Total | O2: ='Budget Template'!O7 -> 2020 | P2: ='Budget Template'!P7 -> 2021 | Q2: ='Budget Template'!Q7 -> 2022 | R2: ='Budget Template'!R7 -> 2023 | S2: ='Budget Template'!S7 -> 2024 | T2: Total | V2: ='Budget Template'!V7 -> 2020 | W2: ='Budget Template'!W7 -> 2021 | X2: ='Budget Template'!X7 -> 2022 | Y2: ='Budget Template'!Y7 -> 2023 | Z2: ='Budget Template'!Z7 -> 2024 | AA2: Total | AC2: ='Budget Template'!AC7 -> 2020 | AD2: ='Budget Template'!AD7 -> 2021 | AE2: ='Budget Template'!AE7 -> 2022 | AF2: ='Budget Template'!AF7 -> 2023 | AG2: ='Budget Template'!AG7 -> 2024 | AH2: Total
C3: (Assumptions) | D3: Resource type* (IRIS)
M5: =SUM(H5:L5) -> 0 | V5: =H5-O5 -> 0 | W5: =I5-P5 -> 0 | X5: =J5-Q5 -> 0 | Y5: =K5-R5 -> 0 | Z5: =L5-S5 -> 0 | AA5: =SUM(V5:Z5) -> 0 | AC5: =IF(H5=O5,"",IF(H5>O5,H5,-H5)) ->  | AD5: =IF(I5=P5,"",IF(I5>P5,I5,-I5)) ->  | AH5: =IF(COUNT(AC5:AG5)=0,"",M5) -> 

Sheet ADD_ACTIVITY
A2: Output | B2: Activity | C2: Inputs | D2: Type | E2: Unit rate | G2: Quantity | H2: ='Budget Template'!H7 -> 2020 | I2: ='Budget Template'!I7 -> 2021 | J2: ='Budget Template'!J7 -> 2022 | K2: ='Budget Template'!K7 -> 2023 | L2: ='Budget Template'!L7 -> 2024 | M2: Total | O2: ='Budget Template'!O7 -> 2020 | P2: ='Budget Template'!P7 -> 2021 | Q2: ='Budget Template'!Q7 -> 2022 | R2: ='Budget Template'!R7 -> 2023 | S2: ='Budget Template'!S7 -> 2024 | T2: Total | V2: ='Budget Template'!V7 -> 2020 | W2: ='Budget Template'!W7 -> 2021 | X2: ='Budget Template'!X7 -> 2022 | Y2: ='Budget Template'!Y7 -> 2023 | Z2: ='Budget Template'!Z7 -> 2024 | AA2: Total | AC2: ='Budget Template'!AC7 -> 2020 | AD2: ='Budget Template'!AD7 -> 2021 | AE2: ='Budget Template'!AE7 -> 2022 | AF2: ='Budget Template'!AF7 -> 2023 | AG2: ='Budget Template'!AG7 -> 2024 | AH2: Total
C3: (Assumptions) | D3: Resource type* (IRIS)
B5: 0 | M5: =SUM(H5:L5) -> 0 | V5: =H5-O5 -> 0 | W5: =I5-P5 -> 0 | X5: 0 | Y5: 0 | Z5: 0 | AA5: =SUM(V5:Z5) -> 0 | AC5: =IF(H5=O5,"",IF(H5>O5,H5,-H5)) ->  | AD5: =IF(I5=P5,"",IF(I5>P5,I5,-I5)) ->  | AH5: =IF(COUNT(AC5:AG5)=0,"",M5) -> 
M6: =SUM(H6:L6) -> 0 | V6: =H6-O6 -> 0 | W6: 0 | X6: 0 | Y6: 0 | Z6: 0 | AA6: =SUM(V6:Z6) -> 0 | AC6: =IF(H6=O6,"",IF(H6>O6,H6,-H6)) ->  | AH6: =IF(COUNT(AC6:AG6)=0,"",M6) -> 
M7: =SUM(H7:L7) -> 0 | V7: =H7-O7 -> 0 | W7: 0 | X7: 0 | Y7: 0 | Z7: 0 | AA7: =SUM(V7:Z7) -> 0 | AC7: =IF(H7=O7,"",IF(H7>O7,H7,-H7)) ->  | AH7: =IF(COUNT(AC7:AG7)=0,"",M7) -> 

Sheet ADD_OUTPUT
A2: Output | B2: Activity | C2: Inputs | D2: Type | E2: Unit rate | G2: Quantity | H2: ='Budget Template'!H7 -> 2020 | I2: ='Budget Template'!I7 -> 2021 | J2: ='Budget Template'!J7 -> 2022 | K2: ='Budget Template'!K7 -> 2023 | L2: ='Budget Template'!L7 -> 2024 | M2: Total | O2: ='Budget Template'!O7 -> 2020 | P2: ='Budget Template'!P7 -> 2021 | Q2: ='Budget Template'!Q7 -> 2022 | R2: ='Budget Template'!R7 -> 2023 | S2: ='Budget Template'!S7 -> 2024 | T2: Total | V2: ='Budget Template'!V7 -> 2020 | W2: ='Budget Template'!W7 -> 2021 | X2: ='Budget Template'!X7 -> 2022 | Y2: ='Budget Template'!Y7 -> 2023 | Z2: ='Budget Template'!Z7 -> 2024 | AA2: Total | AC2: ='Budget Template'!AC7 -> 2020 | AD2: ='Budget Template'!AD7 -> 2021 | AE2: ='Budget Template'!AE7 -> 2022 | AF2: ='Budget Template'!AF7 -> 2023 | AG2: ='Budget Template'!AG7 -> 2024 | AH2: Total
C3: (Assumptions) | D3: Resource type* (IRIS)
A5: 0 | H5: =SUM(H6:H18) -> 0 | I5: =SUM(I6:I18) -> 0 | J5: =SUM(J6:J18) -> 0 | K5: 0 | L5: 0 | M5: =SUM(H5:L5) -> 0 | V5: =SUM(V6:V18) -> 0 | W5: =SUM(W6:W18) -> 0 | X5: =SUM(X6:X18) -> 0 | Y5: 0 | Z5: 0 | AA5: =SUM(V5:Z5) -> 0 | AC5: =IF(COUNT(AC6:AC18)=0,"",H5) ->  | AD5: =IF(COUNT(AD6:AD18)=0,"",I5) ->  | AE5: =IF(COUNT(AE6:AE18)=0,"",J5) ->  | AF5: =IF(COUNT(AF6:AF18)=0,"",K5) ->  | AG5: =IF(COUNT(AG6:AG18)=0,"",L5) ->  | AH5: =IF(COUNT(AC5:AG5)=0,"",M5) -> 
C6: DO NOT DELETE LINE
B7: 0 | M7: =SUM(H7:L7) -> 0 | V7: =H7-O7 -> 0 | W7: =I7-P7 -> 0 | X7: 0 | Y7: 0 | Z7: 0 | AA7: =SUM(V7:Z7) -> 0 | AC7: =IF(H7=O7,"",IF(H7>O7,H7,-H7)) ->  | AD7: =IF(I7=P7,"",IF(I7>P7,I7,-I7)) ->  | AH7: =IF(COUNT(AC7:AG7)=0,"",M7) -> 
M8: =SUM(H8:L8) -> 0 | V8: 0 | W8: 0 | X8: 0 | Y8: 0 | Z8: 0 | AA8: =SUM(V8:Z8) -> 0
M9: =SUM(H9:L9) -> 0 | V9: 0 | W9: 0 | X9: 0 | Y9: 0 | Z9: 0 | AA9: 0
B10: 0 | M10: =SUM(H10:L10) -> 0 | V10: 0 | W10: 0 | X10: 0 | Y10: 0 | Z10: 0 | AA10: 0
M11: =SUM(H11:L11) -> 0 | V11: 0 | W11: 0 | X11: 0 | Y11: 0 | Z11: 0 | AA11: 0
M12: 0 | V12: 0 | W12: 0 | X12: 0 | Y12: 0 | Z12: 0 | AA12: 0
B13: 0 | M13: 0 | V13: 0 | W13: 0 | X13: 0 | Y13: 0 | Z13: 0 | AA13: =SUM(V13:Z13) -> 0
M14: 0 | V14: 0 | W14: 0 | X14: 0 | Y14: 0 | Z14: 0 | AA14: 0
M15: 0 | V15: 0 | W15: 0 | X15: 0 | Y15: 0 | Z15: 0 | AA15: 0
M16: 0 | V16: 0 | W16: 0 | X16: 0 | Y16: 0 | Z16: 0 | AA16: 0
M17: 0 | V17: =H17-O17 -> 0 | W17: 0 | X17: 0 | Y17: 0 | Z17: 0 | AA17: =SUM(V17:Z17) -> 0 | AC17: =IF(H17=O17,"",IF(H17>O17,H17,-H17)) ->  | AH17: =IF(COUNT(AC17:AG17)=0,"",M17) -> 
M18: 0 | V18: =H18-O18 -> 0 | W18: 0 | X18: 0 | Y18: 0 | Z18: 0 | AA18: 0 | AC18: =IF(H18=O18,"",IF(H18>O18,H18,-H18)) -> 

Sheet Resource Type (budgeting)
A1: Resource Categories | B1: Resource Category Description | C1: Resource Type (budgeting) | D1: Resource Type Description
A2: 010_ILO_INTERNATIONAL_STAFF | B2: International Professional Staff | C2: 512100_ILO_EXPERTS_COSTS | D2: Standard Costs for International Experts
A3: 010_ILO_INTERNATIONAL_STAFF | B3: International Professional Staff | C3: 512124_DSA_ST_STAFF | D3: Daily Subsistence Allowance for Short-Term staff
A4: 010_ILO_INTERNATIONAL_STAFF | B4: International Professional Staff | C4: 515129_MISCELLANEOUS_PERSONNEL | D4: Miscellaneous Personnel Costs
A5: 010_ILO_INTERNATIONAL_STAFF | B5: International Professional Staff | C5: 518202_ILO_EXPERTS_SST | D5: Special Short-Term Contracts Int. Staff
A6: 015_INT_CONSULTANTS | B6: International Consultants | C6: 514175_INT_CONSULTANTS | D6: International Consultants
A7: 020_ILO_LOCAL_STAFF | B7: Local Support Staff | C7: 518100_ADMIN_COST_AT_ACTUAL | D7: Administrative support costs - salaries - Budget
A8: 020_ILO_LOCAL_STAFF | B8: Local Support Staff | C8: 518201_SST_CONTRACTS_GS_STAFF | D8: Special Short Term - Contracts / General Service Staff
A9: 024_NAT_OFFICERS | B9: National Professional Staff | C9: 518115_NATIONAL_OFFICERS | D9: National Officer based on Actuals
A10: 025_NAT_CONSULTANTS | B10: National Consultants | C10: 514170_NAT_CONSULTANTS | D10: National Consultants
A11: 030_OTHER_STAFF | B11: Consultants / National Professional Staff | C11: 514160_TECH_BACKSTOP_MONIT | D11: Technical Backstopping and Monitoring
A12: 030_OTHER_STAFF | B12: Consultants / National Professional Staff | C12: 514215_LABOUR_COSTS | D12: Labour Costs
A13: 030_OTHER_STAFF | B13: Consultants / National Professional Staff | C13: 515171_OP_ASSIST_EXP | D13: Operational Assistant Expert
A14: 030_OTHER_STAFF | B14: Consultants / National Professional Staff | C14: 515191_UN_VOLUNTEERS | D14: United Nations Volunteers
A15: 030_OTHER_STAFF | B15: Consultants / National Professional Staff | C15: 518203_DAILY_STAFF | D15: Daily Project Staff (International & National)
A16: 040_TRAVEL_PROJECT_STAFF | B16: Travel Project Staff | C16: 701100_TRAVEL_PROJECT_STAFF | D16: Travel Project Staff
A17: 050_TRAVEL_NON_PROJECT_STAFF | B17: Travel Other Staff | C17: 701300_TRAVEL_OTHER_STAFF | D17: Travel non Project Staff
A18: 060_SUBCONTRACTS | B18: Subcontracts | C18: 531111_RESEARCH | D18: Research
A19: 060_SUBCONTRACTS | B19: Subcontracts | C19: 531114_HQ_REQ_EXT_PRINT_BIND | D19: Contractual work for printing and binding
A20: 060_SUBCONTRACTS | B20: Subcontracts | C20: 531115_SUBCONTRACTS_GRL | D20: Project Subcontracts
A21: 060_SUBCONTRACTS | B21: Subcontracts | C21: 531116_PUBLIC_INFO_CNTRACT | D21: Contracts of public information
A22: 060_SUBCONTRACTS | B22: Subcontracts | C22: 531117_EXT_DATA_PROCESS_CNTRCT | D22: Contractual work for processing of data
A23: 060_SUBCONTRACTS | B23: Subcontracts | C23: 531118_EVAL_CONTRACTS_COMPANY | D23: Evaluation Contracts for Companies
A24: 060_SUBCONTRACTS | B24: Subcontracts | C24: 531192_AUDIT_COSTS | D24: Audit costs
A25: 060_SUBCONTRACTS | B25: Subcontracts | C25: 531199_TECH_COOP_IMP_AGREEMENT | D25: Technical Cooperation Implementation Agreement
A26: 060_SUBCONTRACTS | B26: Subcontracts | C26: 531505_EXT_TRANSLATION_CONTRCT | D26: Contractual work for translation
A27: 060_SUBCONTRACTS | B27: Subcontracts | C27: 531515_OTHER_INDIVIDUAL_CONTR | D27: Other Indivudual Contracters
A28: 070_GRAL_OP_EXPENSES | B28: General Operating Expenses | C28: 541100_PREMISES_COST | D28: Premises rental and maintenance costs
A29: 070_GRAL_OP_EXPENSES | B29: General Operating Expenses | C29: 541114_BUILDING_REPAIRS | D29: Building repairs
A30: 070_GRAL_OP_EXPENSES | B30: General Operating Expenses | C30: 541116_UN_COMMON_SERV_CHARGES | D30: 541116_UN_COMMON_SERVICE
A31: 070_GRAL_OP_EXPENSES | B31: General Operating Expenses | C31: 541117_TC_RENT_GUARANTEE_DPT | D31: TC Rent Guarantee / Deposit
A32: 070_GRAL_OP_EXPENSES | B32: General Operating Expenses | C32: 541500_SECURITY COSTS | D32: Security expenses
A33: 070_GRAL_OP_EXPENSES | B33: General Operating Expenses | C33: 542100_OPERATION_AND_MAINT | D33: Hiring and maintenance of material
A34: 070_GRAL_OP_EXPENSES | B34: General Operating Expenses | C34: 544100_MISCELLANEOUS_COST | D34: Miscellaneous Cost - Budget
A35: 070_GRAL_OP_EXPENSES | B35: General Operating Expenses | C35: 544105_REVOLVING_FUND | D35: Revolving Fund
A36: 070_GRAL_OP_EXPENSES | B36: General Operating Expenses | C36: 544197_REPORTING_COSTS | D36: Reporting costs
A37: 070_GRAL_OP_EXPENSES | B37: General Operating Expenses | C37: 544200_INSURANCE_COST | D37: Insurance Cost
A38: 070_GRAL_OP_EXPENSES | B38: General Operating Expenses | C38: 551111_OFFICE SUPPLIES | D38: Stationery and Office Supplies
A39: 071_COMMUNICATIONS | B39: Communications | C39: 543100_COMMUNICATION_COST | D39: Communication Cost
A40: 080_FURNITURE_EQUIPMENT | B40: Furniture and Equipment | C40: 561101_OFFICE_FURNIT_EQUIP | D40: Office equipment - non expendable
A41: 080_FURNITURE_EQUIPMENT | B41: Furniture and Equipment | C41: 561162_DATA_PROCESS_EQUIP | D41: Data processing equipment - non expendable
A42: 080_FURNITURE_EQUIPMENT | B42: Furniture and Equipment | C42: 561163_PRINT_REP_DIST_EQUIP | D42: Printing, Reproduction, Distribution Equipment - non expendable
A43: 080_FURNITURE_EQUIPMENT | B43: Furniture and Equipment | C43: 561164_VEHICLES | D43: Vehicles
A44: 080_FURNITURE_EQUIPMENT | B44: Furniture and Equipment | C44: 561165_COMMUNIC_EQUIP | D44: Communication Equipment - non expendable
A45: 080_FURNITURE_EQUIPMENT | B45: Furniture and Equipment | C45: 561167_MOBILE_PHONE_HANDSET | D45: Mobile Phone Handset (not to be used for monthly charges)
A46: 080_FURNITURE_EQUIPMENT | B46: Furniture and Equipment | C46: 561168_SECURITY_EQUIP_<$5000 | D46: Security Equipment (<$5,000)
A47: 080_FURNITURE_EQUIPMENT | B47: Furniture and Equipment | C47: 561191_OTHER_EQUIPMENT | D47: Other non-expendable equipment
A48: 080_FURNITURE_EQUIPMENT | B48: Furniture and Equipment | C48: 561268_SECURITY_EQUIP_>$5000 | D48: Security Equipment (>$5,000)
A49: 090_ACQUISITION_IMPROV_PREMISE | B49: Acquisition and Improvement of Premises | C49: 571101_CONSTRUCTION_COSTS | D49: Construction costs
A50: 100_SEMINARS | B50: Seminars | C50: 581100_SEMINARS_GRAL | D50: Seminars General
A51: 110_OTHER_TRAINING_ACTIVITIES | B51: Training Activities | C51: 581116_IN_SERVICE_TRAINING | D51: In service training
A52: 110_OTHER_TRAINING_ACTIVITIES | B52: Training Activities | C52: 581117_STUDY_TOURS | D52: Study tours
A53: 110_OTHER_TRAINING_ACTIVITIES | B53: Training Activities | C53: 581118_SEMINARS_OTHER | D53: Seminars other group training
A54: 110_OTHER_TRAINING_ACTIVITIES | B54: Training Activities | C54: 581211_FELLOWSHIPS | D54: Fellowships
A55: 120_GRANTS | B55: Grants | C55: 582104_GRANTS | D55: Grants
A56: 140_PROG_SUPPORT_COSTS | B56: Programme Support Costs | C56: 593101_PROGRAMME_SUPPORT | D56: Programme support
A57: 140_PROG_SUPPORT_COSTS | B57: Programme Support Costs | C57: 593105_UNDP_AOS | D57: UNDP Administrative and Operational Support
A58: 160_PROVISIONS | B58: Provision for Cost Increases or Contingencies | C58: 597111_PROVISION_CONTINGENCIES | D58: Provison for Contingencies
A59: 160_PROVISIONS | B59: Provision for Cost Increases or Contingencies | C59: 597115_PROVISION_COST_INCREASE | D59: Provison for Cost Increase
